Cogmind - Beta 16.1 @@@ ROGUE MODE // 2026.03.09 @ 18:31:23 Player: Savant Result: Destroyed by Architect with Modified Sigix Sheargun Performance ------------- Evolutions (9) 4500 Regions Visited (34) 6800 Robots Destroyed (750) 3750 Value Destroyed (48574) 48574 Prototype IDs (383) 7660 Alien Tech Used (5) 1000 Bonus (73902) 73902 TOTAL SCORE: 146186 Bonus ------- Triggered High Security 1500 High Alert Combat Kills 26580 Follower Combat Kills 925 Entered Garrisons 600 Met Data Miner 300 Acquired ECA 300 Met Warlord at Base 500 MAIN.C Attacked Warlord 500 Warlord Defense Kills 472 Hacked Protovariant 500 Met Warlord at Research 2000 Invited to Help at Command 2000 Scanned by Researcher 500 Destroyed Superfortress 15000 Destroyed MAIN.C Guards 500 Met MAIN.C 5000 Destroyed MAIN.C Shell 5000 Destroyed MAIN.C 10000 Met Architect 300 Destroyed A8 300 Destroyed A6 400 Destroyed A2 1000 Friendly Fire -275 Cogmind --------- Core Integrity 0/1600 Matter 40/300 Energy 290/350 System Corruption 23% Temperature Warm (131) Movement Walking (183) Ox1 Location -1/Access_0 Parts ------- > --- POWER (3) -------- Quantum Reactor > --- PROPULSION (6) --- Enhanced Flexi-carbon Leg Enhanced Flexi-carbon Leg Experimental Biometal Leg > --- UTILITY (13) ----- Experimental Power Amplifier Concept Thermoelectric Network Concept Antigrav Storage Unit Experimental Targeting Computer Experimental Targeting Computer Experimental Core Analyzer Experimental Core Analyzer Experimental Armor Integrity Analyzer Experimental Weapon Cycler Experimental Core Shielding Heavy Regenerative Plating AEGIS Remote Shield > --- WEAPON (4) ------- Long-range Gatling Laser Long-range Gatling Laser Neutron Cannon Hypervelocity Linear Accelerator > --- INVENTORY (25) --- Experimental Heat Sink Concept NT7 Matterbank (350) Gravity Neutralizer Long-range Terrain Scanner Experimental Weapon Cycler AEGIS Remote Shield Transdimensional Reconstructor Concept Rapid Grenade Launcher Concept Tactical Fusion Warhead Peak State ------------ > --- POWER ------------ Improved Quantum Reactor Concept Zero-point Core Quantum-Graviton Reactor > --- PROPULSION ------- HC-Gravjet Exoskeleton Experimental Surge Thruster > --- UTILITY ---------- Armored Scrap Engine Coolant Network Concept Thermoelectric Network Concept Antigrav Storage Unit Experimental Terrain Scan Processor Concept Core Analysis Suite Experimental Reaction Control System Concept Cloak Mesh Concept Cloak Mesh Medium Regenerative Plating Experimental Force Field > --- WEAPON ----------- Concept Plasma Driver Hpw. Kinetic Helical Construct/C > --- INVENTORY -------- Experimental Antimatter Reactor Concept Zero-point Core Concept Thermoelectric Network Concept Antigrav Storage Unit Concept Chromion Battery Concept Chromion Battery Concept Chromion Battery Concept NT7 Matterbank Long-range Terrain Scanner Advanced Targeting Computer Concept Core Analysis Suite Experimental Kinecellerator Experimental Weapon Cycler Concept Phase Shift Module AEGIS Remote Shield Advanced Point Defense System Transdimensional Reconstructor Transdimensional Reconstructor Concept Navigation Harness Compact HERF Cannon Concept Rapid Grenade Launcher Concept Tactical Fusion Warhead [Rating: 289] Favorites ----------- Power Constructs Engine Ion Engine Power Core Meta Core Reactor Constructs Propulsion Constructs Treads Light Treads Leg Constructs Wheel Wheel Hover Unit Cooled Gravmag System Flight Unit Improved Surge Thruster Utility Armored Scrap Engine Device Armored Scrap Engine Storage Huge Storage Unit Processor Enhanced Optical Array Hackware Advanced Hacking Suite Protection Medium Regenerative Plating Artifact Phase Redirector Weapon Constructs Energy Gun Heavy Quantum Rifle Energy Cannon Concept Plasma Driver Ballistic Gun Subdweller Machine Gun Ballistic Cannon Constructs Launcher Advanced EMP Blaster Special Weapon Advanced Remote Datajack Impact Weapon Makeshift Hammer Slashing Weapon Scythe Piercing Weapon Heavy Pick Special Melee Weapon Datajack Build | -11 -10 -10 -10 -8 -8 -8 -6 -6 -6 -6 -6 -6 -5 -5 -5 -5 -5 -5 -5 -4 -4 -4 -4 -4 -3 -3 -3 -3 -2 -2 -2 -1 -1 -1 ------- Run | Yrd Mat Min Sub Mat Sto Rec Fac Gar Fac Low Low Dat Pro Fac Gar Fac Upp Upp Zhi Pro Fac Upp Upp War Pro Res Qua Gar Res Tes Frg Acc Com Ac0 Slots Evolved 18 | . . . . 4 . . 4 . . . . . . 2 . . . . . . 2 . . . . 2 . . 2 . . 2 . . Power 2 | . . . . . . . . . . . . . . 1 . . . . . . 1 . . . . . . . . . . . . . Propulsion 3 | . . . . 2 . . 1 . . . . . . . . . . . . . . . . . . . . . . . . . . . Utility 11 | . . . . 1 . . 3 . . . . . . 1 . . . . . . 1 . . . . 1 . . 2 . . 2 . . Weapon 2 | . . . . 1 . . . . . . . . . . . . . . . . . . . . . 1 . . . . . . . . Parts Attached 309 | 5 11 1 27 25 4 8 7 7 5 7 1 1 . 11 6 . 1 . 4 1 8 . 1 4 5 4 8 3 20 3 35 5 49 32 Power 33 | . 1 1 4 5 . . . . . . . . . 1 . . . . . . 2 . . . . . 1 . 4 . 4 . 6 4 Engine 9 | . 1 . 4 4 . . . . . . . . . . . . . . . . . . . . . . . . . . . . . . Core 7 | . . 1 . 1 . . . . . . . . . 1 . . . . . . 2 . . . . . . . . . 2 . . . Reactor 17 | . . . . . . . . . . . . . . . . . . . . . . . . . . . 1 . 4 . 2 . 6 4 Propulsion 67 | 2 . . 9 10 2 2 1 1 . 1 . . . 2 2 . . . 2 . 1 . . . 4 . 1 2 2 . 3 . 11 9 Treads 16 | 2 . . 3 4 2 2 . 1 . . . . . . . . . . . . . . . . . . 1 . . . . . . 1 Leg 20 | . . . . . . . . . . . . . . . . . . . . . . . . . . . . 1 2 . . . 9 8 Wheel 12 | . . . 6 6 . . . . . . . . . . . . . . . . . . . . . . . . . . . . . . Hover 9 | . . . . . . . 1 . . . . . . . . . . . 2 . 1 . . . 2 . . 1 . . . . 2 . Flight 10 | . . . . . . . . . . 1 . . . 2 2 . . . . . . . . . 2 . . . . . 3 . . . Utility 132 | 1 5 . 4 4 . 2 4 5 3 4 1 1 . 6 2 . 1 . 2 1 5 . 1 4 1 3 4 1 7 2 21 5 22 10 Device 76 | . 2 . 1 1 . 1 2 3 2 3 1 1 . 3 2 . 1 . . 1 4 . 1 4 1 2 . 1 4 1 14 3 11 6 Storage 11 | 1 1 . . 1 . 1 . . . . . . . . . . . . 1 . 1 . . . . . 1 . 1 . 1 1 1 . Processor 19 | . . . . . . . . . . . . . . 3 . . . . . . . . . . . 1 . . 1 . 3 1 8 2 Hackware 5 | . . . . 1 . . 1 . . . . . . . . . . . . . . . . . . . 2 . . . 1 . . . Protection 20 | . 2 . 3 1 . . 1 2 1 1 . . . . . . . . 1 . . . . . . . . . 1 1 2 . 2 2 Artifact 1 | . . . . . . . . . . . . . . . . . . . . . . . . . . . 1 . . . . . . . Weapon 77 | 2 5 . 10 6 2 4 2 1 2 2 . . . 2 2 . . . . . . . . . . 1 2 . 7 1 7 . 10 9 Energy Gun 16 | 2 3 . 1 1 . 2 . . . . . . . . . . . . . . . . . . . 1 . . . 1 . . 2 3 Energy Cannon 19 | . . . 3 1 1 . . . 1 1 . . . . 1 . . . . . . . . . . . 1 . 2 . 2 . 2 4 Ballistic Gun 23 | . 2 . 5 3 . 1 . . 1 . . . . 2 . . . . . . . . . . . . . . 2 . 2 . 4 1 Ballistic Cannon 5 | . . . . . . . . . . . . . . . . . . . . . . . . . . . 1 . 2 . . . 1 1 Launcher 6 | . . . . 1 1 . . 1 . . . . . . . . . . . . . . . . . . . . . . 3 . . . Special Weapon 1 | . . . . . . . . . . . . . . . . . . . . . . . . . . . . . 1 . . . . . Impact Weapon 2 | . . . 1 . . . . . . 1 . . . . . . . . . . . . . . . . . . . . . . . . Slashing Weapon 1 | . . . . . . 1 . . . . . . . . . . . . . . . . . . . . . . . . . . . . Piercing Weapon 3 | . . . . . . . 1 . . . . . . . 1 . . . . . . . . . . . . . . . . . 1 . Special Melee Weapon 1 | . . . . . . . 1 . . . . . . . . . . . . . . . . . . . . . . . . . . . Unidentified Prototypes 36 | . . . . 1 . 1 1 1 . . 1 . . . . . . . 3 . 1 . . 2 4 . 1 . 5 3 7 . 2 3 Corrupted Parts 7 | . . . . . . . . . . . . . . . . . . . . . . . . . . . . . . . 1 . 1 5 System Corruption 33 | . . . . . . . . . . . . . . . . . . . . . . . . . . . . . . . 10 . 3 20 Parts Lost 66 | . . . 2 8 . . . . 1 1 . . . . . . 2 . . . . . . . . . 1 2 . 1 7 . 12 29 Power 12 | . . . 1 3 . . . . . . . . . . . . . . . . . . . . . . . . . . 1 . 1 6 Propulsion 12 | . . . . 1 . . . . . . . . . . . . 1 . . . . . . . . . . . . . . . 1 9 Utility 28 | . . . 1 2 . . . . . 1 . . . . . . 1 . . . . . . . . . 1 2 . 1 5 . 8 6 Weapon 14 | . . . . 2 . . . . 1 . . . . . . . . . . . . . . . . . . . . . 1 . 2 8 Highest Loss Streak 21 | . . . 2 3 . . . . 1 1 . . . . . . 2 . . . . . . . . . 1 1 . 1 3 . 8 21 To Critical Strikes 3 | . . . . . . . . . . . . . . . . . . . . . . . . . . . . . . . 1 . 1 1 Average Backups 19 | 4 8 10 5 19 24 22 17 19 20 24 24 24 24 24 24 24 24 24 24 25 24 24 24 24 24 24 24 22 23 23 23 23 21 18 Power . | 1 1 . . . 1 1 . . . . . . . . . . . . . . . . . . . . . . . 1 . 2 1 1 Propulsion 2 | 2 2 3 . 4 9 5 1 . 1 . . . . . 2 3 4 3 3 3 3 3 3 3 3 3 2 2 1 1 1 . . 1 Utility 11 | . 1 2 2 6 6 7 8 12 14 16 18 17 17 16 15 14 14 15 16 17 16 17 17 17 16 15 15 13 14 14 14 15 12 9 Weapon 4 | . 3 4 2 6 7 7 6 5 4 5 4 5 5 5 5 5 5 5 3 3 3 3 3 3 4 5 5 3 4 4 5 3 4 5 Tool/Special . | . . . . . . . . . . . . . . . . . . . . . . . . . . . . . . . . . . . Unused Backups 94 | . 4 . 4 3 3 6 1 1 2 3 2 . . 2 1 1 . 1 3 . 4 . 1 4 1 . 1 1 9 5 13 . 10 8 Power 4 | . 1 . . . . . 1 . . . . . . 1 . . . . . . . . . . . . . . . . 1 . . . Propulsion 22 | . 3 . 1 1 2 5 . . 1 1 . . . . . . . 1 . . . . . . 1 . . 1 1 . 2 . 1 1 Utility 45 | . . . 1 2 . . . . 1 1 2 . . 1 1 . . . 2 . 3 . 1 3 . . . . 7 1 7 . 6 6 Weapon 21 | . . . 2 . 1 1 . 1 . 1 . . . . . 1 . . 1 . 1 . . 1 . . 1 . 1 3 3 . 3 . Tool/Special 2 | . . . . . . . . . . . . . . . . . . . . . . . . . . . . . . 1 . . . 1 Average Slot Usage (%) 74 | . 99 100 86 91 100 73 64 56 58 58 64 62 62 66 74 76 67 65 62 65 66 68 68 68 66 67 67 64 67 72 66 62 72 82 Engine 3 | . 14 5 13 8 9 8 6 5 4 2 . . . . . . . . . . . . . . . . . . . . . . . . Core 3 | . . 8 . . . . . . . 3 6 6 6 9 5 4 4 5 5 5 8 9 9 9 8 8 7 4 4 4 4 3 2 2 Reactor 3 | . . . . . . . . . 1 . . . . . 3 4 4 5 5 5 4 4 4 4 4 4 4 6 5 8 7 3 5 3 Treads 5 | . 28 28 14 18 18 9 . 2 3 2 . . . . . . . . . . . . . . . . . . 1 . . . . . Leg 2 | . . . . . . . . . 4 . . . . . . . . . . . . . . . . 2 3 3 4 8 2 1 8 16 Wheel 3 | . . . 13 15 18 8 . . . . . . . . . . . . . . . . . . . . . . . . . . . . Hover 1 | . . . . . . 2 12 5 . . . . . . . . . . 4 10 8 9 9 9 7 4 3 1 . . . . . . Flight 2 | . . . . . . . . . . 6 12 12 12 12 17 19 13 10 2 . . . . . . . . . . . 5 2 . . Device 15 | . 2 10 1 2 9 8 18 15 18 21 19 18 18 13 14 18 19 19 16 19 17 17 18 18 18 19 16 16 23 21 24 26 23 20 Storage 5 | . 14 14 2 9 9 9 6 6 6 6 6 6 6 4 4 4 4 5 5 5 4 4 4 4 4 4 4 4 4 4 4 3 2 3 Processor 5 | . . . . . . . . . . . . . . 13 9 9 9 10 10 10 9 9 9 9 9 8 8 8 11 12 7 6 11 16 Protection 5 | . 11 3 11 8 9 3 5 8 7 4 5 6 6 . 3 . . . 3 . 4 4 4 4 4 4 1 . . 3 3 3 2 2 Energy Gun 2 | . 20 7 2 7 . 3 . . . . . . . . . . . . . . . . . . . 2 2 . . 3 1 . 1 5 Energy Cannon 3 | . . . 12 3 8 3 6 2 1 6 6 6 6 1 . . 2 5 4 . 1 4 4 4 4 1 1 1 4 4 2 . 3 5 Ballistic Gun 4 | . 7 20 13 14 18 14 . . 1 . . . . 2 3 4 . . . . . . . . . . . . . . . 2 1 . Ballistic Cannon 1 | . . . . . . . . 3 5 . . . . 2 4 4 1 . . 5 2 . . . . 2 4 4 2 . 1 3 2 . Peak Build Rating 289 | 5 8 11 17 37 41 54 69 90 100 97 96 96 96 138 139 141 141 137 141 139 155 149 153 168 175 194 195 186 220 226 274 289 289 286 Average Rating 138 | 4 7 9 13 30 39 47 66 72 91 84 89 94 90 127 136 135 135 134 133 134 148 147 148 160 171 186 189 177 201 220 244 272 257 257 On Entrance 124 | . 5 8 11 14 37 41 52 67 88 83 96 93 96 90 138 136 136 134 134 135 132 148 148 149 168 174 194 179 184 220 223 272 289 280 Avg Prop Armor Cover (%) 5 | . . . 5 10 14 16 . 4 4 . . . . . 2 6 5 . . . . . . . 2 2 1 2 2 2 1 2 2 5 Naked Turns 30 | . . . . . . . . . . . . . . . . . . . . . . . . . . . . . . . . . 30 . Heaviest Build 173 | 9 22 22 43 119 106 106 66 69 117 121 127 121 121 124 136 128 128 125 131 135 157 145 143 142 145 139 155 160 172 170 173 140 163 163 Greatest Support 224 | 40 40 40 40 80 20 80 68 124 171 176 176 176 176 189 189 180 222 217 224 224 224 224 224 224 150 144 86 190 220 220 197 215 183 178 Greatest Overweight (x) 10 | . . . 3 10 5 9 . 1 . . . . . . . . . . . . . . . . . 1 2 1 . . . . 1 2 Average Overweight (x) . | . . . 1 4 5 2 . . . . . . . . . . . . . . . . . . . . 1 . . . . . . . Largest Inventory Capacity 25 | 8 10 10 10 25 25 25 20 20 25 25 25 25 25 25 25 25 25 25 25 25 25 25 25 25 25 25 25 25 25 25 25 25 25 25 Average Capacity 20 | 7 9 10 5 22 25 23 20 20 21 25 25 25 25 25 25 25 25 25 25 25 25 25 25 25 25 25 25 25 25 25 25 25 24 25 Most Carried 25 | 7 10 10 10 25 25 25 20 20 25 25 25 25 24 25 25 25 25 25 25 25 25 24 25 25 25 25 25 25 25 25 25 25 25 25 Average Carried 20 | 4 8 9 5 20 24 22 17 19 20 24 24 24 24 24 24 24 24 24 24 25 24 24 24 24 24 24 24 22 24 24 24 24 22 20 Final Capacity 25 | 8 10 10 10 25 25 20 20 20 25 25 25 25 25 25 25 25 25 25 25 25 25 25 25 25 25 25 25 25 25 25 25 25 25 25 Final Carried 25 | 7 10 10 10 25 25 18 20 20 25 24 25 24 24 25 25 25 25 25 25 25 24 24 25 25 25 25 24 19 25 25 25 23 25 9 Scrap Engine Consumption 278 | . . . . . . 52 1 32 16 8 3 . . 5 14 4 1 3 4 . 13 . . 4 7 3 8 12 23 7 39 2 17 . Constructs Created 4 | . . . . . . 3 . . . . . . . . . . . . . . . . . . . . . . . . 1 . . . Constructs Modified 117 | . . . . . . 16 . 10 10 3 . . . 2 3 . 4 . 4 . 3 . . 1 5 5 4 6 7 . 19 7 8 . Class Distribution -------------------- 19% | Construct 15% | Scavenger-Gunner 9% | Subdweller-Mutant 9% | Mutant 8% | Tank 5% | Sprinter 5% | Infiltrator-Construct 5% | Hacker-Construct 4% | Skirmisher 4% | Scavenger-Tank Dominant Class ---------------- Mutant | -10/Materials Mutant | -10/Mines Subdweller-Mutant | -10/Subcaves Scavenger-Tank | -8/Materials Tank | -8/Storage Construct | -8/Recycling Construct | -6/Factory Construct | -6/Garrison Construct | -6/Factory Construct | -6/Lower Caves Construct | -6/Lower Caves Construct | -6/Data Miner Construct | -5/Proximity Caves Scout | -5/Factory Sprinter | -5/Garrison Infiltrator-Ninja | -5/Factory Infiltrator-Construct | -5/Upper Caves Infiltrator-Construct | -5/Upper Caves Construct | -5/Zhirov Infiltrator-Construct | -4/Proximity Caves Construct | -4/Factory Infiltrator-Construct | -4/Upper Caves Infiltrator-Construct | -4/Upper Caves Construct | -4/Warlord Construct | -3/Proximity Caves Assassin | -3/Research Hacker-Construct | -3/Quarantine Hacker-Construct | -3/Garrison Skirmisher | -2/Research Scavenger-Tank | -2/Testing Sprinter | -2/Protoforge Skirmisher | -1/Access Scavenger-Gunner | -1/Command Scavenger-Gunner | -1/Access_0 Resources | -11 -10 -10 -10 -8 -8 -8 -6 -6 -6 -6 -6 -6 -5 -5 -5 -5 -5 -5 -5 -4 -4 -4 -4 -4 -3 -3 -3 -3 -2 -2 -2 -1 -1 -1 ----------- Run | Yrd Mat Min Sub Mat Sto Rec Fac Gar Fac Low Low Dat Pro Fac Gar Fac Upp Upp Zhi Pro Fac Upp Upp War Pro Res Qua Gar Res Tes Frg Acc Com Ac0 Matter Collected 17824 | 228 327 82 549 994 455 398 70 285 557 110 120 . . 233 341 90 107 40 . . 844 76 80 80 220 150 434 392 452 394 3119 249 4905 1443 Remotely . | . . . . . . . . . . . . . . . . . . . . . . . . . . . . . . . . . . . Salvage Created 41513 | . 416 74 752 2184 1140 879 . 1363 1716 359 . . . 325 1887 82 110 . . . 2600 . 74 185 420 258 686 1469 304 986 8898 386 12222 1738 Parts 1673 | . 27 11 48 112 71 38 . 61 88 8 . . . 3 77 5 7 . . . 93 . 5 3 14 4 32 54 10 32 353 19 402 96 Haulers Intercepted 16 | . 2 . . 4 1 . . . 2 1 . . . 2 . . . . . . 2 . . . . 1 . . . 1 . . . . Recyclers Shooed 7 | . 1 . . . . 2 . . . . . . . . . . . . . . 3 . . . . . . . . . . . 1 . Parts Field Recycled . | . . . . . . . . . . . . . . . . . . . . . . . . . . . . . . . . . . . Retrieved Matter . | . . . . . . . . . . . . . . . . . . . . . . . . . . . . . . . . . . . Parts Self-Destructed 69 | . . . 20 . . . . . . 8 1 . . . . . 7 5 . . . 9 5 . 14 . . . . . . . . . Prevented . | . . . . . . . . . . . . . . . . . . . . . . . . . . . . . . . . . . . Parts Restored 10 | . . . . . . . . . . . . . . . . . . . . . . . . . . . . . . . 10 . . . Faulty 10 | . . . . . . . . . . . . . . . . . . . . . . . . . . . . . . . 10 . . . Kills | -11 -10 -10 -10 -8 -8 -8 -6 -6 -6 -6 -6 -6 -5 -5 -5 -5 -5 -5 -5 -4 -4 -4 -4 -4 -3 -3 -3 -3 -2 -2 -2 -1 -1 -1 ------- Run | Yrd Mat Min Sub Mat Sto Rec Fac Gar Fac Low Low Dat Pro Fac Gar Fac Upp Upp Zhi Pro Fac Upp Upp War Pro Res Qua Gar Res Tes Frg Acc Com Ac0 Combat Hostiles Destroyed 607 | . 11 3 20 33 19 7 . 24 25 4 . . . . 22 1 4 . . . 19 . 1 3 5 . 12 20 5 12 142 9 186 20 Melee 5 | . . . . . . . . . . . . . . . 1 . . . . . . . . . . . . . . . 1 . 3 . Guns 89 | . 9 3 9 21 7 5 . . 3 . . . . . 5 . . . . . . . . . . . . . 1 4 11 . . 11 Cannons 351 | . . . 9 6 10 2 . 17 21 4 . . . . 12 1 4 . . . 17 . 1 3 5 . 11 19 4 7 92 9 93 4 AOE 122 | . 2 . . 5 2 . . 5 . . . . . . . . . . . . . . . . . . . . . . 26 . 80 2 Classes Destroyed 30 | . 6 . 3 5 . . . 2 3 . . . . . 2 . . . . . . . . . . . . . . . 8 . 1 . Worker 28 | . 1 1 . 5 2 . . . 5 . . . . . . . . . . . 3 . . . . . . . . . 5 . 6 . Builder 20 | . . . . 1 . . . . 4 . . . . . . . . . . . 8 . . . . 3 . . . . 4 . . . Tunneler 2 | . 2 . . . . . . . . . . . . . . . . . . . . . . . . . . . . . . . . . Hauler 16 | . 2 . . 4 1 . . . 2 1 . . . 2 . . . . . . 2 . . . . 1 . . . 1 . . . . Recycler 22 | . . . . 3 1 6 . . . . . . . 1 . . . . . . 5 . . . . . . . . 1 . . 5 . Carrier 2 | . . . . . . . . . . . . . . . . . . . . . . . . . . . . . . . 1 . 1 . Mechanic 22 | . . . . . . . . . 1 . . . . . . . . . . . 2 . . . . . . . . . 6 . 13 . Operator 3 | . . . . 2 . . . . . . . . . . . . . . . . . . . . . . . . . 1 . . . . Drone 1 | . . . . . . . . . . . . . . . . . . . . . . . . . . . . . . . 1 . . . Watcher 20 | . 1 . . 3 2 . . . . . . . . . . 1 . . . . 3 . . . . 3 2 . . . . . 5 . Swarmer 60 | . 9 3 4 3 3 . . 7 7 . . . . . . . 4 . . . . . . . . . . 9 . 3 . 4 4 . Cutter 9 | . . . . . . . . 3 . . . . . . 3 . . . . . . . . . . . . 3 . . . . . . Saboteur 17 | . . . . . . . . . 1 . . . . . . . . . . . . . . . . . . . . . 2 . 14 . Grunt 193 | . 2 . 3 23 7 1 . 5 8 4 . . . . 14 . . . . . 8 . 1 2 2 . 2 4 2 1 46 2 56 . Brawler 28 | . . . . 1 . 1 . 2 2 . . . . . . . . . . . . . . . . . . . 1 . 7 . 14 . Duelist 21 | . . . . 1 . . . 1 . . . . . . 1 . . . . . . . . . 1 . . . . . 6 . 11 . Protector 12 | . . . . . . . . . . . . . . . . . . . . . . . . . . . . . . . 4 . 8 . Researcher 3 | . . . . . . . . . . . . . . . . . . . . . . . . . . . . . . . 3 . . . Sentry 42 | . . . 1 5 9 . . 4 2 . . . . . . . . . . . 5 . . . . . . 1 . . 11 2 2 . Demolisher 2 | . . . . . . . . . . . . . . . . . . . . . . . . . . . . . . . . . 2 . Specialist 16 | . . . . . . . . . . . . . . . 1 . . . . . . . . . . . . . . . 6 . 9 . Hunter 30 | . . . . . . . . . 1 . . . . . 1 . . . . . 2 . . . 2 . 4 2 . 5 5 . 8 . Programmer 67 | . . . . . . . . 2 4 . . . . . 1 1 . . . . 4 . . . . . 6 . 1 3 22 1 22 . Behemoth 4 | . . . . . . . . . . . . . . . 1 . . . . . . . . 1 . . . 1 1 . . . . . M Guard 2 | . . . . . . . . . . . . . . . . . . . . . . . . . . . . . . . . . 2 . Enhanced Grunt 11 | . . . . . . . . . . . . . . . . . . . . . . . . . . . . . . . . . . 11 Enhanced Sentry 3 | . . . . . . . . . . . . . . . . . . . . . . . . . . . . . . . . . . 3 Enhanced Hunter 3 | . . . . . . . . . . . . . . . . . . . . . . . . . . . . . . . . . . 3 Hotshot 3 | . . . . . . . . . . . . . . . . . . . . . . . . . . . . . . . 3 . . . Decapitator 15 | . . . . . . . . . . . . . . . . . . . . . . . . . . . . . . . 15 . . . Immortal 4 | . . . . . . . . . . . . . . . . . . . . . . . . . . . . . . . 4 . . . Combat Programmer 2 | . . . . . . . . . . . . . . . . . . . . . . . . . . . . . . . . . 2 . Investigator 4 | . . . . . . . . . . . . . . . . . . . . . . . . . . . . . . . 1 . 3 . Striker 14 | . . . . . . . . . . . . . . . . . . . . . . . . . . . . . . . 2 . 12 . Executioner 20 | . . . . . . . . . . . . . . . . . . . . . . . . . . . . . . . 2 . 18 . Alpha 7 2 | . . . . . . . . . . . . . . . . . . . . . . . . . . . . . . . 2 . . . V-Series 3 | . . . . . . . . . . . . . . . . . . . . . . . . . . . . . . . 3 . . . Artisan 1 | . . . 1 . . . . . . . . . . . . . . . . . . . . . . . . . . . . . . . Subdweller 17 | . . . 12 . . 5 . . . . . . . . . . . . . . . . . . . . . . . . . . . . Thug 1 | . . . 1 . . . . . . . . . . . . . . . . . . . . . . . . . . . . . . . Best Kill Streak 46 | . 3 3 3 8 6 5 . 4 7 3 . . . 1 9 1 4 . . . 7 . 1 1 2 2 3 5 1 7 23 4 46 3 Combat Bots Only 40 | . 3 3 3 6 4 3 . 4 5 3 . . . . 9 1 4 . . . 4 . 1 1 2 . 3 5 1 7 21 4 40 3 Max Kills in Single Turn 10 | . 2 1 2 3 2 1 . 2 2 1 . . . 1 1 1 1 . . . 2 . 1 1 1 1 2 2 1 1 10 1 9 1 Gunslinging 1 | . . . 1 . . . . . . . . . . . . . . . . . . . . . . . . . . . . . . . Exploded 9 | . 1 . . 2 2 . . 2 . . . . . . . . . . . . . . . . . . . . . . 9 . 8 1 Melee 1 | . . . . . . . . . . . . . . . 1 . . . . . . . . . . . . . . . 1 . 1 . Uniques/NPCs Destroyed 6 | . . . . . . . . . . . . . . . . . . . . . . . . . . . . . . . 1 . 2 3 Superfortress (-2/Protoforge) MAIN.C Shell (-1/Command) MAIN.C (-1/Command) A8 (-1/Access_0) A6 (-1/Access_0) A2 (-1/Access_0) Combat | -11 -10 -10 -10 -8 -8 -8 -6 -6 -6 -6 -6 -6 -5 -5 -5 -5 -5 -5 -5 -4 -4 -4 -4 -4 -3 -3 -3 -3 -2 -2 -2 -1 -1 -1 -------- Run | Yrd Mat Min Sub Mat Sto Rec Fac Gar Fac Low Low Dat Pro Fac Gar Fac Upp Upp Zhi Pro Fac Upp Upp War Pro Res Qua Gar Res Tes Frg Acc Com Ac0 Hostile Shots Fired 4011 | . 43 11 84 116 41 10 . 175 182 45 19 . 6 . 84 2 19 . . 3 93 . 2 . 43 . 116 103 13 80 987 62 706 966 Missed 2064 | . 12 4 17 31 14 4 . 59 64 14 14 . 4 . 44 1 9 . . 1 44 . 1 . 25 . 40 28 3 30 722 36 444 399 Intercepted 5 | . . . . . . . . . . . . . . . . . . . . . . . . . . . . . . . . . 5 . Deflected 13 | . . . . . . . . . . . . . . . . . . . . . . . . . . . . . . . . . . 13 Hits 1947 | . 31 7 67 85 27 6 . 116 118 31 5 . 2 . 40 1 10 . . 2 49 . 1 . 18 . 76 75 10 50 265 26 262 567 Melee 50 | . . . . 3 . . . 4 . . . . . . 6 . . . . . . . . . . . . 1 . . 22 . 6 8 Projectile 1897 | . 31 7 67 82 27 6 . 112 118 31 5 . 2 . 34 1 10 . . 2 49 . 1 . 18 . 76 74 10 50 243 26 256 559 AOE 10 | . . . . . . . . 1 . . . . . . . . . . . . . . . . . . . 2 . . 5 . 2 . Critical Strikes 110 | . 1 . 2 6 1 . . 6 3 2 1 . . . 5 . . . . . 2 . . . 2 . 3 5 . 2 31 . 12 26 Actively Blocked 1 | . . . . . . . . . . . . . . . . . . . . . 1 . . . . . . . . . . . . . Part Disruptions 6 | . . . . . . . . . . . . . . . . . . . . . . . . . . . . . . . 3 . 2 1 Damage Taken 32475 | . 307 76 1157 1448 361 124 . 1611 1757 594 84 . 38 260 839 23 150 . . 61 750 . 11 19 212 . 1193 1270 133 501 4365 555 4245 10331 Core 2974 | . 21 15 122 60 22 . . 193 68 79 29 . . 29 48 . . . . . 99 . . . . . 301 81 15 23 267 34 344 1124 Absorbed by Shields 16861 | . . . . . . 3 . 9 . . . . . . 5 . . . . . 296 . 11 6 126 . 211 745 137 522 3693 77 4274 6746 Redirected to Core 195 | . . . . . . . . . . . . . . . . . . . . . . . . . . . 195 . . . . . . . Redirected to Shielding 291 | . . . . . . . . 34 3 72 . . . . . . . . . . 114 . . . 31 . . . . . . . . 37 Regen/Repaired (Parts) 11149 | . . . . 11 . 22 . 951 949 148 . . . 102 247 . 144 . 181 . 314 . . 189 73 136 314 681 613 20 1737 1421 2301 595 Core Remaining (%) 76 | 100 . . 36 . . 85 . . . . . . 56 . . . . . . 92 . . . . 91 . . 70 . . 78 . . . Volleys Fired 1865 | . 50 10 118 129 42 33 . 98 125 24 4 . . . 51 7 9 11 . 2 72 2 11 14 48 9 55 86 18 67 354 33 268 115 Largest 4 | . 2 2 2 3 3 3 . 2 2 2 2 . . . 2 2 1 1 . 1 1 1 1 1 1 2 2 2 2 2 2 1 3 4 Hottest 466 | . 80 80 160 155 119 119 . 112 136 140 136 . . . 144 79 69 69 . 69 69 69 69 69 69 263 263 263 245 301 443 303 466 460 Shots Fired 3036 | . 99 20 144 257 116 76 . 101 176 28 6 . . . 99 8 9 11 . 2 72 2 11 14 48 14 83 108 27 92 486 33 524 370 Gun 1123 | . 99 20 102 227 72 50 . . 45 . . . . . 29 1 . . . . . . . . . 3 12 . 4 54 118 . 93 194 Cannon 1843 | . . . 42 24 43 26 . 91 131 28 6 . . . 70 7 9 11 . 2 72 2 11 14 48 11 71 108 22 38 355 33 399 169 Launcher 69 | . . . . 6 1 . . 10 . . . . . . . . . . . . . . . . . . . . . . 13 . 32 7 Special 1 | . . . . . . . . . . . . . . . . . . . . . . . . . . . . . 1 . . . . . Kinetic 1591 | . 63 6 85 170 73 43 . 57 158 22 4 . . . 80 8 . . . 2 46 . . . . 8 53 75 18 . 252 33 299 36 Thermal 1119 | . . . 57 60 . 3 . 29 18 2 2 . . . 19 . 9 11 . . 26 2 11 14 48 4 12 . 8 85 208 . 179 312 Explosive 46 | . . . . . . . . . . . . . . . . . . . . . . . . . . . . . . . 7 . 32 7 Electromagnetic 279 | . 36 14 2 27 43 30 . 15 . 4 . . . . . . . . . . . . . . . 2 18 33 . 7 19 . 14 15 Robot Hit Streak 37 | . 6 6 15 10 30 11 . 8 14 5 . . . . 9 4 9 . . . 9 . 1 4 7 4 6 23 28 13 13 8 37 20 Robot Miss Streak 10 | . 4 3 3 5 3 2 . 3 4 3 . . . . 3 . 2 . . . 2 . 3 2 3 2 5 3 1 1 10 2 9 3 Penetration Max 3 | . . . . . . . . . 2 . . . . . . . . . . . 1 . . . . . 1 1 1 . 3 1 2 1 Secondary Targets 7 | . 1 . 1 2 . 1 . . . . . . . . . . . . . . . . . . . . . . . . . . . 2 Max Gunslinging Chain 1 | . 1 . 1 1 . 1 . . . . . . . . . . . . . . . . . . . . . . . . . . . 1 Shots Hit Robots 1807 | . 55 13 76 132 71 41 . 66 104 18 . . . 3 76 4 6 . . . 77 . 1 9 14 9 37 68 17 40 275 10 336 249 Core Hits 1196 | . 21 4 25 83 37 19 . 35 51 9 . . . . 37 2 3 . . . 25 . 1 3 2 3 15 26 5 13 277 6 348 146 Critical Kills 46 | . . . 4 2 . . . . 10 . . . . . 3 . . . . . 1 . . . . . . . . 1 6 . 8 11 Critical Parts Destroyed 39 | . . . . 2 . . . . 6 1 . . . 1 7 . . . . . 1 . . . 1 2 . . . 1 6 . 1 10 Critical Strikes 100 | . . . 5 6 . 1 . 2 16 1 . . . 1 11 . . . . . 2 . . . 1 2 . 1 . 2 14 . 10 25 Burn 2 | . . . . 1 . 1 . . . . . . . . . . . . . . . . . . . . . . . . . . . . Meltdown 17 | . . . 2 . . . . . 1 . . . . . 2 . . . . . . . . . . . . . . . 4 . 7 1 Destroy 69 | . . . 3 4 . . . . 15 1 . . . . 5 . . . . . 1 . . . 1 . . . . 2 10 . 3 24 Blast 1 | . . . . . . . . . . . . . . . . . . . . . . . . . . . . 1 . . . . . . Corrupt 1 | . . . . 1 . . . . . . . . . . . . . . . . . . . . . . . . . . . . . . Smash 7 | . . . . . . . . . . . . . . 1 3 . . . . . 1 . . . . 2 . . . . . . . . Impale 3 | . . . . . . . . 2 . . . . . . 1 . . . . . . . . . . . . . . . . . . . Melee Attacks 299 | . . . 8 . . 2 5 22 . 1 3 . 3 21 37 21 3 18 . 5 60 6 16 1 29 24 . . . . . . 14 . Impact 242 | . . . 8 . . . . . . 1 3 . 3 21 23 21 3 18 . 5 60 6 16 1 29 24 . . . . . . . . Slashing 4 | . . . . . . 2 2 . . . . . . . . . . . . . . . . . . . . . . . . . . . Piercing 53 | . . . . . . . 3 22 . . . . . . 14 . . . . . . . . . . . . . . . . . 14 . Sneak Attacks 29 | . . . . . . . . . . 1 . . . 3 2 . . . . . 18 . . . . 5 . . . . . . . . Combat Hostiles 2 | . . . . . . . . . . . . . . . . . . . . . 2 . . . . . . . . . . . . . Follow-up Attacks 2 | . . . . . . . . . . . . . . . 2 . . . . . . . . . . . . . . . . . . . Damage Inflicted 179055 | . 856 169 1788 3550 1765 911 . 4656 4467 818 . . . 343 4068 213 432 . . . 7405 . 197 943 1703 752 2923 4946 1444 3196 57265 2756 60644 10845 Guns 15916 | . 725 169 1030 2202 678 460 . . 376 . . . . . 416 32 . . . . . . . . . 29 280 . 110 687 2669 . 2025 4028 Cannons 120091 | . . . 758 508 931 387 . 2928 4057 734 . . . . 1805 62 432 . . . 5350 . 197 943 1604 300 2490 4946 1254 2509 47235 2756 32419 5486 Explosions 35713 | . 127 . . 826 156 . . 789 . . . . . . . . . . . . . . . . . . 153 . . . 7318 . 25013 1331 Melee 7160 | . . . . . . 64 . 939 . 84 . . . 343 1847 119 . . . . 2055 . . . 99 423 . . . . . . 1187 . Ramming 175 | . 4 . . 14 . . . . 34 . . . . . . . . . . . . . . . . . . . 80 . 43 . . . Kinetic 86583 | . 479 63 760 1450 834 401 . 1982 4303 601 . . . . 1786 94 . . . . 3450 . . . . 108 2016 3812 812 . 38528 2756 21934 414 Thermal 45386 | . 127 . 1006 958 . 59 . 1246 130 . . . . . 435 . 432 . . . 1900 . 197 943 1604 151 280 . 552 2934 11301 . 12270 8861 Explosive 31967 | . . . . . . . . . . . . . . . . . . . . . . . . . . . 153 . . . 5499 . 24984 1331 Electromagnetic 7784 | . 246 106 22 1128 931 387 . 489 . 133 . . . . . . . . . . . . . . . 70 474 1134 . 262 1894 . 269 239 Impact 3573 | . . . . . . . . . . 84 . . . 343 450 119 . . . . 2055 . . . 99 423 . . . . . . . . Slashing 64 | . . . . . . 64 . . . . . . . . . . . . . . . . . . . . . . . . . . . . Piercing 3523 | . . . . . . . . 939 . . . . . . 1397 . . . . . . . . . . . . . . . . . 1187 . Highest Corruption 23 | . . . . 3 3 3 . . 4 4 2 2 2 2 2 3 3 . . . . . . . . . 2 2 . 2 19 . 15 23 Average Corruption 5 | . . . . 2 3 3 . . 3 2 2 2 2 2 2 2 1 . . . . . . . . . 1 2 . 1 10 . 6 6 Corruption Purged 39 | . . . . . . . . . . 4 . . . . . . 3 . . . . . . . . . . . . . 15 . 17 . Corruption Blocked . | . . . . . . . . . . . . . . . . . . . . . . . . . . . . . . . . . . . Effects 415 | . . . . 14 15 40 . . 9 5 1 . 6 . 15 7 2 . . . . . . . . . 2 13 . 8 125 . 127 26 Message Errors 96 | . . . . 4 3 12 . . 3 2 1 . 1 . 3 1 . . . . . . . . . . . 5 . . 24 . 27 10 Matter Fused 90 | . . . . 2 1 10 . . 2 1 . . 4 . 4 2 . . . . . . . . . . 1 4 . 3 26 . 27 3 Heat Flow Errors 53 | . . . . 3 2 5 . . . 1 . . . . 3 1 . . . . . . . . . . . 1 . 1 16 . 17 3 Energy Discharges 43 | . . . . . 2 5 . . 2 . . . 1 . 3 3 1 . . . . . . . . . . 1 . 3 7 . 13 2 Parts Rejected 8 | . . . . . . . . . . . . . . . . . . . . . . . . . . . 1 . . . 4 . 2 1 Parts Fused 4 | . . . . . . 1 . . . . . . . . . . . . . . . . . . . . . . . 1 1 . 1 . Data Loss (minor) 38 | . . . . 1 2 2 . . 1 1 . . . . 1 . 1 . . . . . . . . . . . . . 15 . 13 1 Data Loss (major) 27 | . . . . 3 2 2 . . 1 . . . . . . . . . . . . . . . . . . . . . 10 . 7 2 Misfires 19 | . . . . 1 2 3 . . . . . . . . 1 . . . . . . . . . . . . 1 . . 3 . 7 1 Alerts 8 | . . . . . 1 . . . . . . . . . . . . . . . . . . . . . . 1 . . 2 . 4 . Misdirections 3 | . . . . . . . . . . . . . . . . . . . . . . . . . . . . . . . 3 . . . Weapon Failures 26 | . . . . . . . . . . . . . . . . . . . . . . . . . . . . . . . 14 . 9 3 Overload Shots . | . . . . . . . . . . . . . . . . . . . . . . . . . . . . . . . . . . . Overflow Damage 20149 | . . . . 25 55 . . 429 195 32 . . . 243 578 62 91 . . . 1328 . . 58 498 267 614 430 99 639 8808 659 4894 145 Projectiles 17091 | . . . . 15 21 . . 428 195 32 . . . . 19 . 91 . . . 825 . . 58 472 38 590 430 83 639 8702 659 3649 145 Explosions 1411 | . . . . 10 34 . . 1 . . . . . . . . . . . . . . . . . . 24 . . . 103 . 1239 . Melee 1647 | . . . . . . . . . . . . . . 243 559 62 . . . . 503 . . . 26 229 . . 16 . 3 . 6 . Knockbacks 167 | . . . . . . . . 2 13 8 . . . 1 11 1 . . . . 27 . . . . 2 5 8 1 . 40 1 47 . Impact 19 | . . . . . . . . . . . . . . 1 1 1 . . . . 13 . . . . 2 . . 1 . . . . . Kinetic 125 | . . . . . . . . 2 12 7 . . . . 10 . . . . . 9 . . . . . 5 7 . . 34 1 38 . Secondary 23 | . . . . . . . . . 1 1 . . . . . . . . . . 5 . . . . . . 1 . . 6 . 9 . Self-Inflicted Damage 969 | . 31 . . 26 . . . 105 . . . . . . . . . . . . . . . . . . . . . . 239 . 500 68 Shots 30 | . 1 . . 1 . . . 4 . . . . . . . . . . . . . . . . . . . . . . 16 . 7 1 Rammed 8 | . 1 2 . 1 . . . . 1 . . . . . . . . . . . . . . . . . . . 3 . . . . . Targets Rammed 9 | . 1 2 . 1 . . . . 1 . . . . . . . . . . . . . . . . . . . 3 . 1 . . . Kicked 1 | . . . . . . . . . . . . . . . . . . . . . . . . . . . . . . . 1 . . . Crushed . | . . . . . . . . . . . . . . . . . . . . . . . . . . . . . . . . . . . Highest Temperature 444 | . 111 165 69 317 277 238 . 331 54 219 114 . . . 294 255 18 88 . 14 140 24 96 . 267 397 398 305 68 372 444 133 354 203 Average Temperature 94 | . 42 70 19 83 80 76 . 69 18 92 57 . . . 66 129 13 31 . 10 40 12 30 . 88 107 122 111 27 97 125 71 130 127 Received Heat Transfer 4569 | . 30 9 420 657 153 40 . 366 294 315 9 . 18 . 234 . . . . 9 144 . . . 39 . 35 102 28 10 408 45 422 782 Thermoelectric Energy+ 21789 | . . . . . . . . . . . . . . . . . . . . . . . . . . . . . . . 1920 173 15147 4549 Effects 20 | . . . . 4 . . . . . . . . . . . . . . . . . . . . . 1 2 . . 1 2 . 10 . Shutdowns 1 | . . . . . . . . . . . . . . . . . . . . . . . . . . 1 . . . . . . . . Energy Bleed 6 | . . . . 1 . . . . . . . . . . . . . . . . . . . . . . . . . . 1 . 4 . Interference 11 | . . . . 3 . . . . . . . . . . . . . . . . . . . . . . 2 . . . . . 6 . Matter Decay 1 | . . . . . . . . . . . . . . . . . . . . . . . . . . . . . . 1 . . . . Damage (minor) 1 | . . . . . . . . . . . . . . . . . . . . . . . . . . . . . . . 1 . . . Siege Activations . | . . . . . . . . . . . . . . . . . . . . . . . . . . . . . . . . . . . Martial Activations . | . . . . . . . . . . . . . . . . . . . . . . . . . . . . . . . . . . . Shielding Activations 7 | . . . . . . . . . . . . . . . . . . . . . . . . . . . . . . . . . . 7 Total Turns 105 | . . . . . . . . . . . . . . . . . . . . . . . . . . . . . . . . . . 105 Longest Duration 26 | . . . . . . . . . . . . . . . . . . . . . . . . . . . . . . . . . . 26 Robots Disrupted 1 | . . . . . . . . . . . . . . . . . . . . . . . . . . . . 1 . . . . . . Combat Hostiles 1 | . . . . . . . . . . . . . . . . . . . . . . . . . . . . 1 . . . . . . Robots Corrupted 44 | . . . . 1 . . . 2 . . . . . 2 2 . . . . . 10 . . . 1 3 1 6 . 1 10 . 3 2 Combat Hostiles 23 | . . . . 1 . . . 2 . . . . . . 2 . . . . . 2 . . . . . 1 1 . 1 8 . 3 2 Parts Fried 108 | . . . . 2 5 1 . 4 . . . . . 4 4 1 . . . . 18 . . . . 4 1 21 . . 35 . 6 2 Impact Corruptions 64 | . . . . . . . . . . . . . . 5 6 2 . . . . 25 . . . 2 9 . . 1 . 11 . 3 . Robots Melted 17 | . . . 2 . . . . . 1 . . . . . 2 . . . . . . . . . . . . . . . 4 . 7 1 Combat Hostiles 16 | . . . 2 . . . . . 1 . . . . . 2 . . . . . . . . . . . . . . . 4 . 6 1 Parts Melted 46 | . . . 7 . . 2 . . . . . . . . 2 . 1 . . . . . . . 1 . . . . 1 16 . 11 5 Heat Transferred 24773 | . 200 . 1299 1905 . 185 . 703 200 . . . . . 650 . 300 . . . 666 . 74 314 518 74 333 . 185 1258 5193 . 6332 4384 Parts Sabotaged 7 | . . . . . . . . . . . . . . . . . . . . . . . . . . . . . . . 1 . 6 . Parts Stolen . | . . . . . . . . . . . . . . . . . . . . . . . . . . . . . . . . . . . Parts Stripped . | . . . . . . . . . . . . . . . . . . . . . . . . . . . . . . . . . . . Power Chain Reactions 9 | . 3 . . 2 . . . 1 . . . . . . . . . . . . . . . . . . . . . . 2 . 1 . Alert | -11 -10 -10 -10 -8 -8 -8 -6 -6 -6 -6 -6 -6 -5 -5 -5 -5 -5 -5 -5 -4 -4 -4 -4 -4 -3 -3 -3 -3 -2 -2 -2 -1 -1 -1 ------- Run | Yrd Mat Min Sub Mat Sto Rec Fac Gar Fac Low Low Dat Pro Fac Gar Fac Upp Upp Zhi Pro Fac Upp Upp War Pro Res Qua Gar Res Tes Frg Acc Com Ac0 Maximum Alert Level 5 | . . . . 3 2 1 . 4 3 . . . . . 4 2 . . . . 2 . . . . . 1 4 3 3 5 5 5 . Low Security (%) 31 | 100 100 100 . 54 . 99 100 2 . . . . . 100 13 . . . . . 52 . . . . 100 83 . . . 5 . . . Level 1 7 | . . . . 11 39 . . 13 . . . . . . 11 . . . . . 25 . . . . . 16 6 . 39 9 . . . Level 2 12 | . . . . 32 60 . . 30 . . . . . . 8 100 . . . . 22 . . . . . . 16 41 60 5 . . . Level 3 13 | . . . . 1 . . . 20 100 . . . . . 66 . . . . . . . . . . . . 15 58 . 21 . . . Level 4 5 | . . . . . . . . 32 . . . . . . . . . . . . . . . . . . . 61 . . 11 . . . Level 5 16 | . . . . . . . . . . . . . . . . . . . . . . . . . . . . . . . 37 18 54 . High Security 13 | . . . . . . . . . . . . . . . . . . . . . . . . . . . . . . . 8 81 45 . Max Security . | . . . . . . . . . . . . . . . . . . . . . . . . . . . . . . . . . . . Peak Influence 7790 | . 151 70 . 704 574 205 135 1544 1092 . . . . 45 1160 629 . . . . 468 . . . . 82 297 1569 902 710 5049 3675 7790 . Initial 3028 | . . 55 . 36 293 205 100 40 810 . . . . . 39 609 . . . . . . . . . 75 . 216 882 332 228 3028 2352 . Average 1316 | . 30 15 . 274 445 40 75 837 898 . . . . 3 737 591 . . . . 226 . . . . 24 93 1088 731 428 1638 3304 6101 . Influence Increases 24746 | . 485 105 180 1305 634 224 248 1534 798 130 195 . . 156 1121 135 165 . . . 873 . 75 90 215 121 649 1413 161 799 5594 697 5594 1050 Destroy 0b10 Robot/C 11860 | . 220 80 160 660 380 60 80 620 500 80 . . . . 440 20 80 . . . 380 . 20 60 100 . 240 600 100 320 2840 180 3640 . Destroy 0b10 Robot/NC 845 | . 30 5 . 90 30 35 . 20 60 5 . . . 15 35 5 . . . . 115 . . . 5 35 10 30 . 20 105 . 195 . Destroy Leader 1690 | . 46 10 20 134 116 . 10 50 124 . . . . 4 30 12 10 . . . 110 . 10 . 20 8 54 50 10 52 270 40 500 . Allied During Kill 174 | . . 10 . . . 3 12 33 . . . . . . . . . . . . . . . . . . . 68 . 48 . . . . Successful Hack 546 | . 41 . . 19 5 3 16 19 33 . . . . 49 14 5 . . . . 77 . . . . . 41 12 30 67 40 27 48 . Select Force Hacks 150 | . 60 . . . 30 60 . . . . . . . . . . . . . . . . . . . . . . . . . . . . Disable Machine 1035 | . 15 . . 30 45 60 15 60 15 . . . . 15 30 15 . . . . 15 . . . . 15 135 30 . 90 255 30 105 60 Anti-Garrison Action 1500 | . . . . . . . . 550 . . . . . . 400 . . . . . . . . . . . . 350 . . 200 . . . Destroy Structure 4866 | . 13 . . 42 13 3 15 122 51 . . . . 28 142 48 . . . . 116 . . . . 48 154 183 21 157 1629 180 911 990 Advance Influence 100 | . . . . . . . 100 . . . . . . . . . . . . . . . . . . . . . . . . . . . Partial Spotted 210 | . 15 . . . . . . . . . . . . 15 . 30 . . . . 30 . . . . . 15 . . . 60 15 30 . Lose Combat Pursuer 1770 | . 45 . . 330 15 . . 60 15 45 195 . . 30 30 . 75 . . . 30 . 45 30 90 15 . 90 . 45 195 225 165 . Influence Decreases 23986 | . 343 237 120 680 800 753 190 48 1262 704 319 382 . 99 18 749 393 307 11 . 429 335 125 127 125 233 360 133 1139 983 952 2071 1483 8076 Entered New Map 15960 | . . 87 6 34 402 324 . 18 734 400 97 382 . . 18 551 203 61 11 . . 165 21 59 22 37 . 73 687 259 179 2021 1323 7786 Time Decay 6802 | . 343 150 90 566 398 409 80 . 478 294 222 . . 99 . 198 170 246 . . 419 170 104 68 103 196 350 . 452 404 703 50 40 . Lost Part 660 | . . . 20 80 . . . . 10 10 . . . . . . 20 . . . . . . . . . 10 20 . 10 70 . 120 290 Lost Ally 264 | . . . 4 . . 20 110 30 40 . . . . . . . . . . . 10 . . . . . . 40 . 10 . . . . Purge Threat 300 | . . . . . . . . . . . . . . . . . . . . . . . . . . . . . . 300 . . . . Squads Dispatched 130 | . 2 . . 5 1 . . . 11 . . . . 1 . 1 . . . . 5 . . . . 1 5 . . 13 27 22 36 . Investigation 10 | . 2 . . 1 1 . . . 1 . . . . . . . . . . . 2 . . . . . 1 . . . 1 1 . . Extermination 20 | . . . . . . . . . 2 . . . . 1 . 1 . . . . 2 . . . . 1 3 . . 4 6 . . . Reinforcement 19 | . . . . 3 . . . . 4 . . . . . . . . . . . 1 . . . . . 1 . . 7 . 3 . . Assault 74 | . . . . 1 . . . . 1 . . . . . . . . . . . . . . . . . . . . 2 20 14 36 . Garrison 7 | . . . . . . . . . 3 . . . . . . . . . . . . . . . . . . . . . . 4 . . Intercept . | . . . . . . . . . . . . . . . . . . . . . . . . . . . . . . . . . . . Searches Triggered . | . . . . . . . . . . . . . . . . . . . . . . . . . . . . . . . . . . . Data Miner Redirects 5 | . . . . . . . . . . . . . . . . . . . . . . . . . . . . . . . 5 . . . Construction Impeded 3 | . . . . 1 . . . . 2 . . . . . . . . . . . . . . . . . . . . . . . . . Haulers Reinforced 3 | . . . . . . . . . 1 . . . . . . . . . . . 1 . . . . . . . . 1 . . . . Active Scanning Responses . | . . . . . . . . . . . . . . . . . . . . . . . . . . . . . . . . . . . Cargo Convoy Interrupts . | . . . . . . . . . . . . . . . . . . . . . . . . . . . . . . . . . . . Stealth | -11 -10 -10 -10 -8 -8 -8 -6 -6 -6 -6 -6 -6 -5 -5 -5 -5 -5 -5 -5 -4 -4 -4 -4 -4 -3 -3 -3 -3 -2 -2 -2 -1 -1 -1 --------- Run | Yrd Mat Min Sub Mat Sto Rec Fac Gar Fac Low Low Dat Pro Fac Gar Fac Upp Upp Zhi Pro Fac Upp Upp War Pro Res Qua Gar Res Tes Frg Acc Com Ac0 Distress Signals 41 | . 1 . . 7 1 1 . . . . . . . . . . . . . . 2 . . . . 1 . . 4 2 1 6 15 . Communications Jammed 76 | . . . . . . . . . . . . . . . . . . . . . 18 . . . . 1 20 . 23 12 2 . . . Distress Signals 71 | . . . . . . . . . . . . . . . . . . . . . 14 . . . . . 20 . 23 12 2 . . . Times Spotted 930 | . 30 5 22 62 21 10 . 36 37 6 13 . 3 2 24 2 9 . . 1 42 . 3 29 10 4 15 31 21 25 172 25 234 36 Peak Tracking Total 24 | . 4 3 4 8 3 2 . 4 7 5 6 . 3 3 8 1 4 . . 1 5 . 3 8 4 4 3 8 4 6 20 9 24 4 Tactical Retreats 81 | . 2 . . 16 1 2 . 3 1 3 5 . . 1 2 . 2 . . 1 5 . 1 1 3 1 . 4 . 3 8 7 9 . ECM-based Alert Blocks 10 | . . . . . . . . . . . . . . . . . . . . 1 9 . . . . . . . . . . . . . Traps | -11 -10 -10 -10 -8 -8 -8 -6 -6 -6 -6 -6 -6 -5 -5 -5 -5 -5 -5 -5 -4 -4 -4 -4 -4 -3 -3 -3 -3 -2 -2 -2 -1 -1 -1 ------- Run | Yrd Mat Min Sub Mat Sto Rec Fac Gar Fac Low Low Dat Pro Fac Gar Fac Upp Upp Zhi Pro Fac Upp Upp War Pro Res Qua Gar Res Tes Frg Acc Com Ac0 Traps Triggered 38 | . . . . 3 . . . 6 1 . . . . 3 6 . . . . . 1 . . . . . 2 1 . . 8 1 6 . Indirectly 2 | . . . . 1 . . . 1 . . . . . . . . . . . . . . . . . . . . . . . . . . Trap Hack Attempts . | . . . . . . . . . . . . . . . . . . . . . . . . . . . . . . . . . . . Triggered . | . . . . . . . . . . . . . . . . . . . . . . . . . . . . . . . . . . . Disarmed . | . . . . . . . . . . . . . . . . . . . . . . . . . . . . . . . . . . . Reprogrammed . | . . . . . . . . . . . . . . . . . . . . . . . . . . . . . . . . . . . Reused . | . . . . . . . . . . . . . . . . . . . . . . . . . . . . . . . . . . . Traps Extracted . | . . . . . . . . . . . . . . . . . . . . . . . . . . . . . . . . . . . Installed . | . . . . . . . . . . . . . . . . . . . . . . . . . . . . . . . . . . . Triggered . | . . . . . . . . . . . . . . . . . . . . . . . . . . . . . . . . . . . Machines | -11 -10 -10 -10 -8 -8 -8 -6 -6 -6 -6 -6 -6 -5 -5 -5 -5 -5 -5 -5 -4 -4 -4 -4 -4 -3 -3 -3 -3 -2 -2 -2 -1 -1 -1 ---------- Run | Yrd Mat Min Sub Mat Sto Rec Fac Gar Fac Low Low Dat Pro Fac Gar Fac Upp Upp Zhi Pro Fac Upp Upp War Pro Res Qua Gar Res Tes Frg Acc Com Ac0 Machines Disabled 102 | . 1 . 1 2 3 4 1 12 1 . . . . 1 9 1 . . . . 1 . . 1 . 1 9 8 . 6 24 2 7 7 Max in Single Turn 2 | . 1 . 1 1 1 1 1 1 1 . . . . 1 2 1 . . . . 1 . . 1 . 1 1 2 . 1 1 1 1 2 Garrison Access 6 | . . . . . . . . . . . . . . . . . . . . . 2 . . . . . . . 3 . 1 . . . Garrison Relay 17 | . . . . . . . . 8 . . . . . . 5 . . . . . . . . . . . . 4 . . . . . . Phase Generator 2 | . . . . . . . . . . . . . . . 1 . . . . . . . . . . . . 1 . . . . . . Machines Repaired . | . . . . . . . . . . . . . . . . . . . . . . . . . . . . . . . . . . . Machines Dismantled . | . . . . . . . . . . . . . . . . . . . . . . . . . . . . . . . . . . . Machines Sabotaged . | . . . . . . . . . . . . . . . . . . . . . . . . . . . . . . . . . . . Overloaded Fab Kills . | . . . . . . . . . . . . . . . . . . . . . . . . . . . . . . . . . . . Hacking | -11 -10 -10 -10 -8 -8 -8 -6 -6 -6 -6 -6 -6 -5 -5 -5 -5 -5 -5 -5 -4 -4 -4 -4 -4 -3 -3 -3 -3 -2 -2 -2 -1 -1 -1 --------- Run | Yrd Mat Min Sub Mat Sto Rec Fac Gar Fac Low Low Dat Pro Fac Gar Fac Upp Upp Zhi Pro Fac Upp Upp War Pro Res Qua Gar Res Tes Frg Acc Com Ac0 Machines Accessed 118 | . 9 . 2 11 3 10 2 2 6 . 1 4 . 8 2 8 . 1 4 . 15 2 . 1 . . 7 2 2 6 6 3 1 . Terminals 64 | . 7 . . 8 2 6 1 2 3 . . . . 4 2 4 . . . . 7 . . . . . 3 2 1 5 3 3 1 . Fabricators 5 | . . . . . . . . . 1 . . . . 1 . 2 . . . . 1 . . . . . . . . . . . . . Repair Stations 6 | . . . . 1 . . . . . . . . . . . . . . . . 3 . . . . . 2 . . . . . . . Recycling Units 7 | . 2 . . . 1 3 . . . . . . . . . . . . . . 1 . . . . . . . . . . . . . Scanalyzers 11 | . . . . 2 . . . . 1 . . . . 2 . 2 . . . . 1 . . . . . 1 . . . 2 . . . Garrison Access 9 | . . . . . . . 1 . 1 . . . . 1 . . . . . . 2 . . . . . 1 . 1 1 1 . . . Total Hacks 311 | . 34 . 5 39 6 15 7 4 14 . 1 28 . 23 4 16 . 1 16 . 37 4 . 1 . . 15 8 5 12 9 5 2 . Successful 187 | . 17 . 5 21 3 11 4 2 6 . 1 28 . 15 1 7 . 1 16 . 18 4 . 1 . . 6 2 3 8 4 1 2 . Failed 123 | . 17 . . 17 3 4 3 2 8 . . . . 8 3 9 . . . . 19 . . . . . 9 6 2 4 5 4 . . Catastrophic 23 | . 1 . . 3 . . . 1 3 . . . . 1 1 2 . . . . 1 . . . . . 4 2 . 1 . 3 . . Database Lockouts 1 | . . . . 1 . . . . . . . . . . . . . . . . . . . . . . . . . . . . . . Manual 121 | . 26 . . 15 6 13 3 . 7 . . . . 5 2 6 . . . . 19 . . 1 . . 3 4 . 3 6 1 1 . Terminals 165 | . 31 . . 24 4 9 6 4 8 . . . . 8 4 9 . . . . 18 . . . . . 6 8 3 11 5 5 2 . Fabricators 11 | . . . . . . . . . 2 . . . . 3 . 3 . . . . 3 . . . . . . . . . . . . . Repair Stations 16 | . . . . 2 . . . . . . . . . . . . . . . . 8 . . . . . 6 . . . . . . . Recycling Units 10 | . 3 . . . 2 4 . . . . . . . . . . . . . . 1 . . . . . . . . . . . . . Scanalyzers 36 | . . . . 13 . . . . 3 . . . . 10 . 4 . . . . 2 . . . . . 1 . . . 3 . . . Garrison Access 15 | . . . . . . . 1 . 1 . . . . 2 . . . . . . 5 . . . . . 2 . 2 1 1 . . . Terminal Hacks 94 | . 7 . 5 3 1 2 1 2 3 . 1 28 . 3 1 1 . 1 16 . . 4 . 1 . . 2 2 2 5 1 1 1 . Record 23 | . . . 4 . . . . . . . . 11 . . . . . . 5 . . 3 . . . . . . . . . . . . Part Schematic 13 | . 1 . . . . . . . . . . 8 . . . . . . 3 . . . . . . . . . . 1 . . . . Robot Schematic 6 | . . . . . . . . . . . . 6 . . . . . . . . . . . . . . . . . . . . . . Robot Analysis 6 | . . . . 1 . . . . . . . . . . . . . . 4 . . . . . . . . . 1 . . . . . Prototype ID Bank 13 | . 3 . . . . . 1 . 1 . . 3 . . . . . . 4 . . . . . . . 1 . . . . . . . Open Door 6 | . . . . . 1 . . 1 . . 1 . . . . . . 1 . . . 1 . 1 . . . . . . . . . . Branch Access Points 2 | . . . . . . . . . 1 . . . . . . . . . . . . . . . . . . . 1 . . . . . Emergency Access Points 1 | . . . . . . . . 1 . . . . . . . . . . . . . . . . . . . . . . . . . . Terminal Index 1 | . 1 . . . . . . . . . . . . . . . . . . . . . . . . . . . . . . . . . Unreport Threat 3 | . . . . . . . . . . . . . . . . . . . . . . . . . . . . . . 2 . 1 . . Locate Traps 6 | . 1 . . 1 . . . . . . . . . 1 . 1 . . . . . . . . . . 1 . . . . . 1 . Hauler Manifests 2 | . . . . . . . . . 1 . . . . 1 . . . . . . . . . . . . . . . . . . . . Registered Components 3 | . 1 . . 1 . . . . . . . . . . . . . . . . . . . . . . . . . 1 . . . . Zone Layout 1 | . . . . . . . . . . . . . . 1 . . . . . . . . . . . . . . . . . . . . Garrison Registry 1 | . . . . . . . . . . . . . . . . . . . . . . . . . . . . 1 . . . . . . Patrol Navigation 2 | . . . . . . . . . . . . . . . 1 . . . . . . . . . . . . 1 . . . . . . Proto ID Catalog 2 | . . . 1 . . . . . . . . . . . . . . . . . . . . . . . . . . . 1 . . . Protovariant Controls 1 | . . . . . . . . . . . . . . . . . . . . . . . . . . . . . . 1 . . . . Release Object 2 | . . . . . . 2 . . . . . . . . . . . . . . . . . . . . . . . . . . . . Fabricator Hacks 2 | . . . . . . . . . . . . . . 1 . 1 . . . . . . . . . . . . . . . . . . Network Status 1 | . . . . . . . . . . . . . . 1 . . . . . . . . . . . . . . . . . . . . Load Schematic 1 | . . . . . . . . . . . . . . . . 1 . . . . . . . . . . . . . . . . . . Repair Station Hacks 6 | . . . . 2 . . . . . . . . . . . . . . . . 3 . . . . . 1 . . . . . . . Scan Component 4 | . . . . 1 . . . . . . . . . . . . . . . . 2 . . . . . 1 . . . . . . . Repair 2 | . . . . 1 . . . . . . . . . . . . . . . . 1 . . . . . . . . . . . . . Recycling Unit Hacks 1 | . . . . . . . . . . . . . . . . . . . . . 1 . . . . . . . . . . . . . Retrieve Components 1 | . . . . . . . . . . . . . . . . . . . . . 1 . . . . . . . . . . . . . Scanalyzer 23 | . . . . 8 . . . . 2 . . . . 7 . 4 . . . . 2 . . . . . . . . . . . . . Insert Component 13 | . . . . 4 . . . . 2 . . . . 4 . 2 . . . . 1 . . . . . . . . . . . . . Analyze 8 | . . . . 3 . . . . . . . . . 3 . 2 . . . . . . . . . . . . . . . . . . Retrieve Study 2 | . . . . 1 . . . . . . . . . . . . . . . . 1 . . . . . . . . . . . . . Garrison Access Hacks 6 | . . . . . . . 1 . . . . . . 1 . . . . . . 2 . . . . . 1 . 1 . . . . . Unlock Access 3 | . . . . . . . 1 . . . . . . 1 . . . . . . . . . . . . 1 . . . . . . . Seal Access 3 | . . . . . . . . . . . . . . . . . . . . . 2 . . . . . . . 1 . . . . . Unauthorized Hacks 55 | . 10 . . 8 2 9 2 . 1 . . . . 3 . 1 . . . . 10 . . . . . 2 . . 3 3 . 1 . Terminals 43 | . 8 . . 8 1 6 2 . . . . . . 2 . 1 . . . . 8 . . . . . 1 . . 3 2 . 1 . Track 1 | . . . . . . . . . . . . . . . . . . . . . . . . . . . . . . . 1 . . . Assimilate 5 | . 1 . . 1 . . . . . . . . . . . . . . . . 1 . . . . . . . . 1 1 . . . Botnet 12 | . 1 . . 1 1 1 1 . . . . . . 1 . 1 . . . . 1 . . . . . 1 . . 2 . . 1 . Operators 4 | . 1 . . . . . 1 . . . . . . 1 . . . . . . 1 . . . . . . . . . . . . . Skim 21 | . 5 . . 6 . 5 . . . . . . . . . . . . . . 5 . . . . . . . . . . . . . Fabricators 3 | . . . . . . . . . 1 . . . . 1 . . . . . . 1 . . . . . . . . . . . . . Haulers 3 | . . . . . . . . . 1 . . . . 1 . . . . . . 1 . . . . . . . . . . . . . Repair Stations 1 | . . . . . . . . . . . . . . . . . . . . . 1 . . . . . . . . . . . . . Patch 1 | . . . . . . . . . . . . . . . . . . . . . 1 . . . . . . . . . . . . . Recycling Units 6 | . 2 . . . 1 3 . . . . . . . . . . . . . . . . . . . . . . . . . . . . Reject 1 | . . . . . . 1 . . . . . . . . . . . . . . . . . . . . . . . . . . . . Tunnel 5 | . 2 . . . 1 2 . . . . . . . . . . . . . . . . . . . . . . . . . . . . Scanalyzers 1 | . . . . . . . . . . . . . . . . . . . . . . . . . . . 1 . . . . . . . Researchers 1 | . . . . . . . . . . . . . . . . . . . . . . . . . . . 1 . . . . . . . Garrison Access 1 | . . . . . . . . . . . . . . . . . . . . . . . . . . . . . . . 1 . . . Jam 1 | . . . . . . . . . . . . . . . . . . . . . . . . . . . . . . . 1 . . . Data Cores Recovered 3 | . . . . 1 . . . . . . . . . . . . . . . . . . . . . . . . . 2 . . . . Used 2 | . . . . . . . . . . . . . . . . . . . . . . . . . . . . . . 2 . . . . Hacking Detections 76 | . 8 . . 9 2 2 1 1 4 . . . . 5 1 6 . . . . 14 . . . . . 6 2 1 6 4 3 1 . Full Trace Events 5 | . . . . 1 . . . 1 . . . . . . . . . . . . 1 . . . . . 1 . . . . 1 . . Feedback Events . | . . . . . . . . . . . . . . . . . . . . . . . . . . . . . . . . . . . Feedback Blocked . | . . . . . . . . . . . . . . . . . . . . . . . . . . . . . . . . . . . Robot Schematics Acquired 9 | . . . . . . . . . . . . 6 . . . . . . . . . . . . . . . . . 1 2 . . . Robots Built . | . . . . . . . . . . . . . . . . . . . . . . . . . . . . . . . . . . . Authchips . | . . . . . . . . . . . . . . . . . . . . . . . . . . . . . . . . . . . Time . | . . . . . . . . . . . . . . . . . . . . . . . . . . . . . . . . . . . Total Robot Build Rating . | . . . . . . . . . . . . . . . . . . . . . . . . . . . . . . . . . . . Part Schematics Acquired 30 | . 1 . . 1 . . . . . . . 8 . 3 . 2 . . 3 . . . . . . . . . . 7 5 . . . Parts Built . | . . . . . . . . . . . . . . . . . . . . . . . . . . . . . . . . . . . Authchips . | . . . . . . . . . . . . . . . . . . . . . . . . . . . . . . . . . . . Time . | . . . . . . . . . . . . . . . . . . . . . . . . . . . . . . . . . . . Total Part Build Rating . | . . . . . . . . . . . . . . . . . . . . . . . . . . . . . . . . . . . Part Studies Acquired 2 | . . . . 1 . . . . . . . . . . . . . . . . 1 . . . . . . . . . . . . . Parts Repaired 1 | . . . . 1 . . . . . . . . . . . . . . . . . . . . . . . . . . . . . . Time 216 | . . . . 136 . . . . . . . . . . . . . . . . 80 . . . . . . . . . . . . . Parts Recycled . | . . . . . . . . . . . . . . . . . . . . . . . . . . . . . . . . . . . Recycled Matter . | . . . . . . . . . . . . . . . . . . . . . . . . . . . . . . . . . . . Retrieved Matter . | . . . . . . . . . . . . . . . . . . . . . . . . . . . . . . . . . . . Retrieved Components 2 | . . . . . . . . . . . . . . . . . . . . . 2 . . . . . . . . . . . . . Parts Scanalyzed 6 | . . . . 1 . . . . . . . . . 3 . 2 . . . . . . . . . . . . . . . . . . Part Schematics Acquired 6 | . . . . 1 . . . . . . . . . 3 . 2 . . . . . . . . . . . . . . . . . . Parts Damaged 1 | . . . . 1 . . . . . . . . . . . . . . . . . . . . . . . . . . . . . . Bothacking | -11 -10 -10 -10 -8 -8 -8 -6 -6 -6 -6 -6 -6 -5 -5 -5 -5 -5 -5 -5 -4 -4 -4 -4 -4 -3 -3 -3 -3 -2 -2 -2 -1 -1 -1 ------------ Run | Yrd Mat Min Sub Mat Sto Rec Fac Gar Fac Low Low Dat Pro Fac Gar Fac Upp Upp Zhi Pro Fac Upp Upp War Pro Res Qua Gar Res Tes Frg Acc Com Ac0 Used RIF Installer . | . . . . . . . . . . . . . . . . . . . . . . . . . . . . . . . . . . . Robots Hacked 1 | . . . . . . . . . . . . . . . . . . . . . . . . . . . . . 1 . . . . . Non-combat . | . . . . . . . . . . . . . . . . . . . . . . . . . . . . . . . . . . . Combat 1 | . . . . . . . . . . . . . . . . . . . . . . . . . . . . . 1 . . . . . Robot Hacks Applied 1 | . . . . . . . . . . . . . . . . . . . . . . . . . . . . . 1 . . . . . parse_system 1 | . . . . . . . . . . . . . . . . . . . . . . . . . . . . . 1 . . . . . Relay Couplers Released 72 | . . . . . . . . 33 . . . . . . 22 . . . . . . . . . . . . 14 2 . 1 . . . Machine Destruction 68 | . . . . . . . . 33 . . . . . . 18 . . . . . . . . . . . . 14 2 . 1 . . . Programmers 4 | . . . . . . . . . . . . . . . 4 . . . . . . . . . . . . . . . . . . . Fabnet Peak Effective % . | . . . . . . . . . . . . . . . . . . . . . . . . . . . . . . . . . . . Robots Rewired 12 | . . . . . . 10 . 1 . . . . . . . . . . . . . . . . . . . . . 1 . . . . Allies Hacked . | . . . . . . . . . . . . . . . . . . . . . . . . . . . . . . . . . . . Hacks Repelled . | . . . . . . . . . . . . . . . . . . . . . . . . . . . . . . . . . . . Allies | -11 -10 -10 -10 -8 -8 -8 -6 -6 -6 -6 -6 -6 -5 -5 -5 -5 -5 -5 -5 -4 -4 -4 -4 -4 -3 -3 -3 -3 -2 -2 -2 -1 -1 -1 -------- Run | Yrd Mat Min Sub Mat Sto Rec Fac Gar Fac Low Low Dat Pro Fac Gar Fac Upp Upp Zhi Pro Fac Upp Upp War Pro Res Qua Gar Res Tes Frg Acc Com Ac0 Total Allies 23 | . . 3 . . . 10 . 3 . . . . . . . . . . . . 1 2 . . . . . 2 . 2 . . . . Largest Group 9 | . . 3 3 . . 9 9 3 1 . . . . . . . . . . . 1 2 . . . . . 2 . 1 . . . . Highest-Rated Group 187 | . . 81 81 . . 137 137 187 70 . . . . . . . . . . . 26 92 . . . . . 157 . 152 . . . . Highest-Rated Ally 152 | . . 31 31 . . 34 34 85 70 . . . . . . . . . . . 26 46 . . . . . 95 . 152 . . . . Initial Warlord ECA Mod 24 | . . . . . . . . . 10 10 10 10 9 9 9 19 19 19 19 18 18 17 17 17 16 16 16 16 24 24 24 23 23 23 Warlord Squad Rendezvous 1 | . . . . . . . . . . . . . . . . . . . . . 1 . . . . . . . . . . . . . Geek 1 | . . . . . . . . . . . . . . . . . . . . . 1 . . . . . . . . . . . . . Total Orders 32 | . . . . . . 6 4 2 12 . . . . . . . . . . . 8 . . . . . . . . . . . . . STAY 6 | . . . . . . . . 1 . . . . . . . . . . . . 5 . . . . . . . . . . . . . ROAM 2 | . . . . . . . 2 . . . . . . . . . . . . . . . . . . . . . . . . . . . FOLLOW 8 | . . . . . . 3 . 1 1 . . . . . . . . . . . 3 . . . . . . . . . . . . . PICKUP 1 | . . . . . . 1 . . . . . . . . . . . . . . . . . . . . . . . . . . . . COLLECT 2 | . . . . . . 2 . . . . . . . . . . . . . . . . . . . . . . . . . . . . EXPLORE 9 | . . . . . . . 1 . 8 . . . . . . . . . . . . . . . . . . . . . . . . . RETURN 4 | . . . . . . . 1 . 3 . . . . . . . . . . . . . . . . . . . . . . . . . Ally Attacks 120 | . . 4 11 . . 4 25 26 4 . . . . . . . . . . . . . . . . . . 31 . 15 . . . . Total Damage 3890 | . . 52 146 . . 79 805 575 50 . . . . . . . . . . . . . . . . . . 1148 . 1035 . . . . Kills 31 | . . 1 2 . . 1 5 7 . . . . . . . . . . . . . . . . . . . 10 . 5 . . . . Allies Corrupted 2 | . . . . . . 1 . . . . . . . . . . . . . . . . . . . . . . . 1 . . . . Allies Melted 1 | . . . . . . . . . . . . . . . . . . . . . . . . 1 . . . . . . . . . . Intel | -11 -10 -10 -10 -8 -8 -8 -6 -6 -6 -6 -6 -6 -5 -5 -5 -5 -5 -5 -5 -4 -4 -4 -4 -4 -3 -3 -3 -3 -2 -2 -2 -1 -1 -1 ------- Run | Yrd Mat Min Sub Mat Sto Rec Fac Gar Fac Low Low Dat Pro Fac Gar Fac Upp Upp Zhi Pro Fac Upp Upp War Pro Res Qua Gar Res Tes Frg Acc Com Ac0 Active Infowar (turns) 25033 | . 151 662 490 . 174 . 172 . 244 458 452 . 268 438 1209 403 348 537 152 319 1067 357 530 675 994 562 1367 1209 1136 979 2634 657 5637 752 Optics 18817 | . . . 24 . . . . . . . . . . 436 1209 403 348 537 152 319 1067 357 530 675 994 562 1367 1209 1136 979 1329 . 4432 752 Sensors 8447 | . . . . . . . . . . . . . . 435 . 384 324 536 150 319 667 336 512 234 941 560 1056 . 950 656 387 . . . IFF 1125 | . . . . . . . . . . 440 412 . 268 5 . . . . . . . . . . . . . . . . . . . . Terrain 4489 | . . . . . . . . . . . . . . . . . . . . . . . 100 . 910 210 329 . 431 446 270 576 884 333 Structural 4360 | . . . . . . . 172 . 244 456 450 . 267 9 . 398 254 535 29 317 331 332 390 176 . . . . . . . . . . Seismic 1453 | . 151 662 466 . 174 . . . . . . . . . . . . . . . . . . . . . . . . . . . . . Machine Analysis 431 | . . . . . . . . . . . . . . 429 2 . . . . . . . . . . . . . . . . . . . Cloaking 1979 | . . . . . . . . . . . . . . . . . . . . . . . . . . . . . . . . 655 1324 . Jamming 11631 | . . . . . . . . . . . . . . . 1097 392 348 537 152 236 850 357 529 . . 559 1358 1209 740 633 2634 . . . ECM 321 | . . . . . . . . . . . . . . . . . . . . 83 237 . . . . . . . . . 1 . . . Robot Analysis Total 6 | . . . . 1 . . . . . . . . . . . . . . 4 . . . . . . . . . 1 . . . . . Derelict Logs Recovered 12 | . . 1 1 . . . . . . 1 1 . 1 . . . 2 2 . 1 . 1 1 . . . . . . . . . . . Drone Launches 11 | . . . . . . . 2 . 9 . . . . . . . . . . . . . . . . . . . . . . . . . Drone Recoveries 9 | . . . . . . . 2 . 7 . . . . . . . . . . . . . . . . . . . . . . . . . Exploration | -11 -10 -10 -10 -8 -8 -8 -6 -6 -6 -6 -6 -6 -5 -5 -5 -5 -5 -5 -5 -4 -4 -4 -4 -4 -3 -3 -3 -3 -2 -2 -2 -1 -1 -1 ------------- Run | Yrd Mat Min Sub Mat Sto Rec Fac Gar Fac Low Low Dat Pro Fac Gar Fac Upp Upp Zhi Pro Fac Upp Upp War Pro Res Qua Gar Res Tes Frg Acc Com Ac0 Turns Passed 40297 | 81 1869 922 4806 1887 944 2052 172 1201 1221 659 476 36 280 438 1209 403 348 537 152 319 1067 357 530 675 994 562 1367 1209 1136 979 3335 657 6632 785 Spaces Moved 36667 | 46 1032 542 3553 868 529 1300 245 1114 929 887 1109 79 668 994 1167 828 724 1066 148 771 1524 689 941 702 966 357 668 576 1152 845 2978 947 5452 271 Core 63 | 5 . . . . . . . . . . . . . . . . . . . . . . . . . . . . . . . . 58 . Treads 3509 | 41 1032 542 154 25 . 192 . 241 281 390 . . . . . . . . . . . . . . 1 . 48 51 492 . . . . 19 Legs 9310 | . . . . . . . . . 648 . . . . . . . . . . . . . . . . 213 560 418 660 845 784 361 4569 252 Wheels 5390 | . . . 3399 843 529 619 . . . . . . . . . . . . . . . . . . . . . . . . . . . . Hover 8390 | . . . . . . 489 245 873 . . . . . . . . . . 55 771 1524 689 941 702 965 144 60 107 . . . . 825 . Flight 10005 | . . . . . . . . . . 497 1109 79 668 994 1167 828 724 1066 93 . . . . . . . . . . . 2194 586 . . Fastest Speed 26 | 50 160 160 95 105 145 73 57 51 51 38 38 38 38 34 26 31 28 30 30 39 37 39 39 39 37 39 110 58 58 71 26 32 36 106 Average Speed 73 | 148 160 160 121 150 145 119 57 61 83 52 38 38 38 35 29 37 31 30 33 39 38 39 39 39 38 95 135 119 71 79 42 54 81 125 Slowest Speed 255 | 160 160 160 240 242 145 250 57 113 149 70 38 38 38 40 38 38 38 30 39 39 39 39 39 39 39 133 222 128 85 85 71 69 190 255 Overloaded Moves 44 | . . . . . . . . . . . . . . . . . . . . . . . . . 30 . . . . . 14 . . . Propulsion Burnouts . | . . . . . . . . . . . . . . . . . . . . . . . . . . . . . . . . . . . Robots Hopped 7 | . . . . . . . . . . . . . . . . 1 . . . . . . . . . . . . . . 4 2 . . Potential Cave-ins . | . . . . . . . . . . . . . . . . . . . . . . . . . . . . . . . . . . . Cave-ins Triggered . | . . . . . . . . . . . . . . . . . . . . . . . . . . . . . . . . . . . Teleports 3 | . . . . . . . . . . . . . . . . . . . . . . . . . . . . . . . . . 1 2 Exploration Rate (%) 67 | 3 97 99 93 61 72 97 10 87 29 91 98 68 96 32 92 33 95 96 61 86 40 83 85 87 96 9 92 80 47 74 41 36 75 26 Regions Visited 34 Branch Regions 21 Pre-discovered Areas 24 | . 3 1 1 2 1 6 . . . 2 . 1 1 . . . . . 3 1 2 . . . . . . . . . . . . . Known Exits Taken 24 | . . 1 . 1 1 1 1 . 1 1 . . 1 1 . 1 1 1 1 1 1 1 1 1 1 1 1 . 1 1 1 . . . Unknown Exits Taken 7 | 1 1 . 1 . . . . . . . 1 1 . . . . . . . . . . . . . . . . . . . 1 1 . Scrap Searched 41 | . . 2 7 . . . . . . 6 6 . 1 . . . 3 5 . 1 . 5 4 . 1 . . . . . . . . . Spaces Dug 529 | . . . 2 11 . 1 4 23 25 2 6 . 3 14 8 22 3 27 . 9 31 7 19 1 43 20 16 . 4 33 11 40 7 137 Terrain Destroyed 2174 | . 11 . 7 39 6 1 4 85 50 9 9 . 3 14 76 24 6 29 . 9 59 8 25 1 60 24 85 107 8 46 247 70 772 280 Melee 175 | . . . . . . 1 4 4 . . 3 . 3 14 8 18 3 18 . 5 30 6 16 1 26 15 . . . . . . . . Projectile 1003 | . . . 7 30 . . . 30 49 9 6 . . . 19 6 3 11 . 4 29 2 9 . 34 9 48 37 8 46 240 70 180 117 AOE 994 | . 11 . . 9 6 . . 51 . . . . . . 49 . . . . . . . . . . . 37 70 . . 7 . 592 162 Terrain Rammed . | . . . . . . . . . . . . . . . . . . . . . . . . . . . . . . . . . . . Walls Destroyed . | . . . . . . . . . . . . . . . . . . . . . . . . . . . . . . . . . . . Machines Disabled . | . . . . . . . . . . . . . . . . . . . . . . . . . . . . . . . . . . . Actions | -11 -10 -10 -10 -8 -8 -8 -6 -6 -6 -6 -6 -6 -5 -5 -5 -5 -5 -5 -5 -4 -4 -4 -4 -4 -3 -3 -3 -3 -2 -2 -2 -1 -1 -1 --------- Run | Yrd Mat Min Sub Mat Sto Rec Fac Gar Fac Low Low Dat Pro Fac Gar Fac Upp Upp Zhi Pro Fac Upp Upp War Pro Res Qua Gar Res Tes Frg Acc Com Ac0 Total 46959 | 57 1151 574 3873 1235 649 1758 266 1486 1190 1052 1150 83 689 1055 1881 883 830 1252 251 780 1853 766 1073 1091 1503 537 1039 990 1441 1049 4583 1052 7298 539 Wait 6384 | . 36 15 89 134 49 308 1 201 82 113 18 1 17 5 604 13 76 154 85 . 139 66 96 343 424 123 266 303 181 60 1001 48 1306 27 Move 36618 | 45 1031 541 3552 867 528 1299 244 1113 928 886 1108 78 667 994 1166 825 723 1065 147 770 1523 688 940 701 965 356 668 575 1151 844 2966 942 5451 271 Hop 7 | . . . . . . . . . . . . . . . . 1 . . . . . . . . . . . . . . 4 2 . . Pick Up 354 | 7 9 1 17 32 7 3 6 6 11 8 3 . . 10 2 3 3 1 4 . 9 . 2 12 3 4 7 . 22 15 53 5 72 17 Fast Attach 175 | 5 2 . 13 8 . 4 1 2 2 . 3 . . 4 5 . 1 . 4 . 2 . . 1 8 2 7 2 8 3 35 . 35 18 Attach 163 | . 1 . 1 10 . 3 4 1 6 4 . 1 . 4 2 . 2 . 1 . 4 . . 1 . 4 2 8 7 1 31 6 35 24 Detach 80 | . 1 . 3 3 . 7 1 1 6 1 . . . . 2 . 1 . 1 . 1 . . . 1 2 . 4 4 1 26 3 5 6 Swap 506 | . 11 4 24 34 14 8 3 9 20 9 7 2 2 8 11 10 8 2 2 3 34 4 7 5 14 9 22 3 23 36 56 8 45 49 Drop 363 | . 9 1 37 17 9 21 1 9 9 5 4 1 . 9 3 3 4 1 7 . 9 . 1 13 11 4 12 4 24 18 53 5 47 12 Fire 1865 | . 50 10 118 129 42 33 . 98 125 24 4 . . . 51 7 9 11 . 2 72 2 11 14 48 9 55 86 18 67 354 33 268 115 Melee 295 | . . . 8 . . 2 5 22 . 1 3 . 3 21 33 21 3 18 . 5 60 6 16 1 29 24 . . . . . . 14 . Ram 1 | . . . . 1 . . . . . . . . . . . . . . . . . . . . . . . . . . . . . . Kick 1 | . . . . . . . . . . . . . . . . . . . . . . . . . . . . . . . 1 . . . Crush 7 | . 1 2 . . . . . . 1 . . . . . . . . . . . . . . . . . . . 3 . . . . . Escape Stasis 44 | . . . . . . . . 16 . . . . . . 2 . . . . . . . . . . . . 5 . . 3 . 18 . Rewire 85 | . . . . . . 70 . 8 . 1 . . . . . . . . . . . . . . . . . . . 4 . . 2 . Trap . | . . . . . . . . . . . . . . . . . . . . . . . . . . . . . . . . . . . Miscellaneous 11 | . . . 11 . . . . . . . . . . . . . . . . . . . . . . . . . . . . . . . Route ------- -11/Scrapyard -10/Materials (discovered 5 exits: [*Mat x3] / [*Min] / *Sub) -10/Mines (discovered 4 exits: [*Mat x2] / [*Exi] / *Sub) -10/Subcaves (discovered 3 exits: *Mat x2 / Rec) -8/Materials (discovered 3 exits: *Fac x2 / *Sto) -8/Storage (discovered 2 exits: *Fac / *Rec) -8/Recycling -6/Factory (discovered 6 exits: Fac x3 / Low x2 / Gar) -6/Garrison (discovered 2 exits: *Fac x2) -6/Factory (discovered 3 exits: *Fac / *Low x2) -6/Lower Caves -6/Lower Caves (discovered 2 exits: *Fac / *Dat) -6/Data Miner -5/Proximity Caves -5/Factory (discovered 3 exits: *Fac x2 / Gar) -5/Garrison (discovered 3 exits: *Fac x3) -5/Factory (discovered 4 exits: *Fac x3 / *Upp) -5/Upper Caves -5/Upper Caves (discovered 2 exits: *Fac / *Zhi) -5/Zhirov -4/Proximity Caves -4/Factory (discovered 7 exits: Res x2 / *Upp x2 / *Ext x2 / Arm) -4/Upper Caves -4/Upper Caves (discovered 2 exits: *Res / *War) -4/Warlord -3/Proximity Caves -3/Research -3/Quarantine (discovered 2 exits: *Res / Gar) -3/Garrison (discovered 3 exits: *Res x3) -2/Research (discovered 4 exits: *Acc x2 / *Tes x2) -2/Testing (discovered 2 exits: [*Sec] / *Frg) -2/Protoforge -1/Access -1/Command (discovered 3 exits: [*Sur x2] / [*Ac0]) -1/Access_0 History --------- Turn | Location | Event 46 | -11/Scrapyard | Discovered new exit (range 15) 82 | -11/Scrapyard | Entered Materials 211 | -10/Materials | Discovered new exit (range 14) 301 | -10/Materials | Build established: Mutant 379 | -10/Materials | Discovered new exit (range 16) 619 | -10/Materials | Learned Storage non-interactive machine intel 664 | -10/Materials | Identified exit to Subcaves 691 | -10/Materials | Discovered new exit (range 16) 700 | -10/Materials | Learned 4 Recycling zone layouts 741 | -10/Materials | Learned location of 1 exit from Recycling 753 | -10/Materials | Learned Storage non-interactive machine intel 1241 | -10/Materials | Discovered new exit (range 5) 1951 | -10/Materials | Entered Mines 2032 | -10/Mines | Learned Materials interactive machine intel 2104 | -10/Mines | Deemed a non-threat by the Exiles lab entrance 2105 | -10/Mines | Discovered new exit (range 5) 2158 | -10/Mines | Discovered new exit (range 16) 2301 | -10/Mines | Found a damaged Exp. Sensor Array with a note attached 2307 | -10/Mines | Found Prototype Device 2486 | -10/Mines | Discovered exit to Subcaves (range 13) 2720 | -10/Mines | Escorted by a lone wolf Derelict 2722 | -10/Mines | Discovered new exit (range 6) 2740 | -10/Mines | Learned location of Storage (-8) 2873 | -10/Mines | Entered Subcaves 2873 | -10/Subcaves | Accompanied by 3 allies 2874 | -10/Subcaves | Identified exit to Recycling 2876 | -10/Subcaves | Ambushed by Subdwellers from Twisted Machinery 2878 | -10/Subcaves | Led the pair of lost Derelicts to an unsafe place 2966 | -10/Subcaves | Shifting Twisted Machinery released Sub. Machine Gun 2972 | -10/Subcaves | Shifting Twisted Machinery released Sub. Monowheel 3421 | -10/Subcaves | Shifting Twisted Machinery released Flamer 3423 | -10/Subcaves | Shifting Twisted Machinery released Sub. Shrapnel Launcher 3485 | -10/Subcaves | Discovered new exit (range 13) 3495 | -10/Subcaves | Build established: Subdweller-Mutant 3747 | -10/Subcaves | Visited Clippyterm 3751 | -10/Subcaves | Learned Factory stockpile data 3860 | -10/Subcaves | Visited 4L-MR0's lab 3970 | -10/Subcaves | Discovered new exit (range 11) 4340 | -10/Subcaves | Shifting Twisted Machinery released Sub. Laser 4818 | -10/Subcaves | Core integrity fell below 50% 4948 | -10/Subcaves | Ambushed by angry Subdweller bent on revenge 5496 | -10/Subcaves | A swath of the cavern ceiling suddenly collapsed 5516 | -10/Subcaves | A swath of the cavern ceiling suddenly collapsed 5671 | -10/Subcaves | Disturbed a concealed Subdweller 7161 | -10/Subcaves | Found Meta Core 7597 | -10/Subcaves | Build established: Scavenger-Mutant 7679 | -10/Subcaves | Entered Materials 7679 | -8/Materials | Evolved 4 slots: Propulsion x2, Utility x1, Weapon x1 7680 | -8/Materials | Identified exit to Storage 7681 | -8/Materials | Loaded intel: 19 interactive machine locations 8214 | -8/Materials | Build established: Scavenger-Tank 8600 | -8/Materials | Discovered new exit (range 13) 8867 | -8/Materials | Identified Exp. Sensor Array 8951 | -8/Materials | Learned 4 Factory zone layouts 8991 | -8/Materials | Learned Storage stockpile data 9020 | -8/Materials | Learned 8 Factory zone layouts 9037 | -8/Materials | Learned location of 1 exit from Lower Caves 9045 | -8/Materials | Learned Factory security intel 9047 | -8/Materials | Learned location of Extension (-4) 9051 | -8/Materials | Learned Storage trap positions 9065 | -8/Materials | Identified exit to Factory 9158 | -8/Materials | Central database locked down 9279 | -8/Materials | First assault squad dispatched 9363 | -8/Materials | Repaired Broken Exp. Sensor Array? 9416 | -8/Materials | Lost 3 parts (2p1w) 9566 | -8/Materials | Entered Storage 9567 | -8/Storage | Loaded intel: 18 trap records 9569 | -8/Storage | Loaded intel: 26 non-interactive machine locations 9799 | -8/Storage | Build established: Tank 10231 | -8/Storage | Discovered exit to Factory (range 16) 10438 | -8/Storage | Used back door to open Recycling access 10438 | -8/Storage | Discovered exit to Recycling (range 5) 10510 | -8/Storage | Entered Recycling 10511 | -8/Recycling | Identified exit to Factory 11191 | -8/Recycling | Learned location of Zion (-7) 11196 | -8/Recycling | Entered Scraplab 11201 | -8/Recycling | Found Prototype Device 11201 | -8/Recycling | Identified Scrap Engine 11245 | -8/Recycling | Learned location of 2 exits from Factory 11348 | -8/Recycling | Learned 4 Recycling zone layouts 11400 | -8/Recycling | Learned Factory terminal intel 11761 | -8/Recycling | Build established: Construct 12462 | -8/Recycling | Build established: Commander-Construct 12562 | -8/Recycling | Entered Factory 12562 | -6/Factory | Accompanied by 9 allies 12562 | -6/Factory | Evolved 4 slots: Propulsion x1, Utility x3 12563 | -6/Factory | Identified exit to Lower Caves 12564 | -6/Factory | Identified exit to Factory 12568 | -6/Factory | Loaded intel: 26 terminal locations 12645 | -6/Factory | Lost 3 allies 12732 | -6/Factory | Identified exit to Garrison 12734 | -6/Factory | Entered Garrison 12734 | -6/Garrison | Accompanied by 1 ally 12876 | -6/Garrison | Triggered checkpoint 12879 | -6/Garrison | Garrison Relay disabled 12920 | -6/Garrison | Triggered checkpoint 12927 | -6/Garrison | Triggered checkpoint 12939 | -6/Garrison | Build established: Construct 13262 | -6/Garrison | Discovered new exit (range 10) 13310 | -6/Garrison | Rescued a captive Derelict 13312 | -6/Garrison | Rescued a captive Derelict 13338 | -6/Garrison | Triggered checkpoint 13344 | -6/Garrison | Garrison Relay disabled 13377 | -6/Garrison | Garrison Relay disabled 13379 | -6/Garrison | Garrison Relay disabled 13388 | -6/Garrison | Garrison Relay disabled 13398 | -6/Garrison | Garrison Relay disabled 13488 | -6/Garrison | Triggered checkpoint 13510 | -6/Garrison | Rewired B-75 Beast 13543 | -6/Garrison | Garrison Relay disabled 13590 | -6/Garrison | Triggered checkpoint 13644 | -6/Garrison | Spotted B-75 Beast 13734 | -6/Garrison | Garrison Relay disabled 13749 | -6/Garrison | Discovered new exit (range 13) 13935 | -6/Garrison | Entered Factory 13935 | -6/Factory | Accompanied by 1 ally 14339 | -6/Factory | Spotted B-75 Beast 14659 | -6/Factory | Discovered exit to Lower Caves (range 10) 14675 | -6/Factory | Garrison activated, responded to threat 14690 | -6/Factory | Discovered exit to Factory (range 15) 14745 | -6/Factory | Found Prototype Processor 14801 | -6/Factory | Identified Exp. Targeting Computer 14985 | -6/Factory | First assault squad dispatched 15156 | -6/Factory | Entered Lower Caves 15157 | -6/Lower Caves | Identified exit to Lower Caves 15160 | -6/Lower Caves | Encountered a Warlord checkpoint 15162 | -6/Lower Caves | Met a Warlord Commander 15163 | -6/Lower Caves | Learned location of Warlord (-4) 15164 | -6/Lower Caves | Warlord Commander delivered Encrypted Comm Array 15169 | -6/Lower Caves | Found Encrypted Comm Array 15815 | -6/Lower Caves | Entered another Lower Caves area 15816 | -6/Lower Caves | Encountered a Warlord checkpoint 15822 | -6/Lower Caves | Learned location of 1 exit from Factory 15947 | -6/Lower Caves | Discovered exit to Factory (range 8) 16162 | -6/Lower Caves | Found Alien Artifact 16162 | -6/Lower Caves | Identified Core Expander 16162 | -6/Lower Caves | Installed Core Expander, added new Propulsion slot 16177 | -6/Lower Caves | Discovered new exit (range 13) 16291 | -6/Lower Caves | Entered Data Miner 16293 | -6/Data Miner | Discovered new exit (range 6) 16300 | -6/Data Miner | Met Data Miner 16311 | -6/Data Miner | Learned location of Section 7 (-2) 16311 | -6/Data Miner | Acquired the access code to Warlord's prototype stash 16317 | -6/Data Miner | Received God Mode back door access code from Data Miner 16327 | -6/Data Miner | Entered Proximity Caves 16597 | -5/Proximity Caves | Discovered exit to Factory (range 10) 16607 | -5/Proximity Caves | Entered Factory 16607 | -5/Factory | Evolved 2 slots: Power x1, Utility x1 16608 | -5/Factory | Identified exit to Factory 16608 | -5/Factory | Attached Meta Core, gained temporary slots: Propulsion, Utility, Weapon 16814 | -5/Factory | Discovered exit to Factory (range 4) 16901 | -5/Factory | Build established: Scout 16952 | -5/Factory | Watched by a mysterious "MATRIX" hacker. 17045 | -5/Factory | Identified exit to Garrison 17045 | -5/Factory | Entered Garrison 17065 | -5/Garrison | Garrison Relay disabled 17149 | -5/Garrison | Spotted B-75 Beast 17187 | -5/Garrison | Destroyed B-75 Beast 17259 | -5/Garrison | Destroyed 9 combat bots 17315 | -5/Garrison | Triggered checkpoint 17376 | -5/Garrison | Discovered new exit (range 12) 17424 | -5/Garrison | Garrison Relay disabled 17441 | -5/Garrison | Identified exit to Factory 17445 | -5/Garrison | Phase Generator disabled 17489 | -5/Garrison | Triggered checkpoint 17538 | -5/Garrison | Discovered exit to Factory (range 15) 17591 | -5/Garrison | Garrison Relay disabled 17702 | -5/Garrison | Spotted B-75 Beast 17703 | -5/Garrison | Discovered exit to Factory (range 15) 17727 | -5/Garrison | Triggered checkpoint 17780 | -5/Garrison | Garrison Relay disabled 17821 | -5/Garrison | Build established: Sprinter 18254 | -5/Garrison | Entered Factory 18296 | -5/Factory | Discovered new exit (range 21) 18315 | -5/Factory | Identified exit to Upper Caves 18455 | -5/Factory | Discovered exit to Factory (range 9) 18552 | -5/Factory | Build established: Infiltrator-Ninja 18566 | -5/Factory | Discovered exit to Factory (range 5) 18594 | -5/Factory | Discovered exit to Factory (range 5) 18657 | -5/Factory | Entered Upper Caves 18975 | -5/Upper Caves | Identified exit to Upper Caves 19000 | -5/Upper Caves | Learned 4 Factory zone layouts 19005 | -5/Upper Caves | Entered another Upper Caves area 19005 | -5/Upper Caves | Discovered exit to Factory (range 17) 19066 | -5/Upper Caves | Build established: Infiltrator-Construct 19371 | -5/Upper Caves | Learned Factory machine intel 19404 | -5/Upper Caves | Discovered new exit (range 16) 19408 | -5/Upper Caves | Identified exit to Zhirov 19489 | -5/Upper Caves | Learned location of 1 exit from Factory 19542 | -5/Upper Caves | Entered Zhirov 19542 | -5/Zhirov | Discovered new exit (range 3) 19543 | -5/Zhirov | Identified exit to Proximity Caves 19554 | -5/Zhirov | Learned location of Quarantine (-3) 19554 | -5/Zhirov | Learned location of Command (-1) 19561 | -5/Zhirov | Found Alien Artifact 19561 | -5/Zhirov | Identified Integrated Reactor 19561 | -5/Zhirov | Installed Integrated Reactor, increased core energy generation (+10) 19568 | -5/Zhirov | Found Alien Artifact 19694 | -5/Zhirov | Entered Proximity Caves 19800 | -4/Proximity Caves | Spotted B-86 Titan 19994 | -4/Proximity Caves | Discovered exit to Factory (range 16) 20013 | -4/Proximity Caves | Entered Factory 20013 | -4/Factory | Evolved 2 slots: Power x1, Utility x1 20014 | -4/Factory | Identified exit to Extension 20015 | -4/Factory | Identified exit to Research 20016 | -4/Factory | Identified exit to Armory 20017 | -4/Factory | Loaded intel: 325 machine locations 20058 | -4/Factory | Identified Transdimensional Reconstructor 20102 | -4/Factory | Discovered new exit (range 4) 20103 | -4/Factory | Identified exit to Upper Caves 20142 | -4/Factory | Spotted B-86 Titan 20516 | -4/Factory | Learned 4 Upper Caves zone layouts 20544 | -4/Factory | Discovered exit to Extension (range 5) 20547 | -4/Factory | Learned Armory emergency access door positions 20569 | -4/Factory | Learned location of 2 exits from Factory 20580 | -4/Factory | Learned 4 Factory zone layouts 20609 | -4/Factory | Joined by Warlord Geek squad 20613 | -4/Factory | Learned 4 Upper Caves zone layouts 20794 | -4/Factory | Build established: Construct 21080 | -4/Factory | Entered Upper Caves 21093 | -4/Upper Caves | Learned 12 Research zone layouts 21331 | -4/Upper Caves | Build established: Infiltrator-Construct 21347 | -4/Upper Caves | Discovered new exit (range 5) 21349 | -4/Upper Caves | Identified exit to Upper Caves 21367 | -4/Upper Caves | A Commander dispatched an escort 21367 | -4/Upper Caves | Learned Research trap positions 21367 | -4/Upper Caves | Learned Research stockpile data 21437 | -4/Upper Caves | Entered another Upper Caves area 21437 | -4/Upper Caves | Accompanied by 2 allies 21438 | -4/Upper Caves | Commander's escort returned to base 21438 | -4/Upper Caves | Commander's escort returned to base 21453 | -4/Upper Caves | Learned Research security intel 21486 | -4/Upper Caves | Discovered exit to Research (range 3) 21622 | -4/Upper Caves | Encountered a Warlord checkpoint 21912 | -4/Upper Caves | Discovered new exit (range 14) 21965 | -4/Upper Caves | Identified exit to Warlord 21967 | -4/Upper Caves | Entered Warlord 22122 | -4/Warlord | Build established: Construct 22126 | -4/Warlord | Opened Warlord's prototype stash 22130 | -4/Warlord | Found Prototype Device 22135 | -4/Warlord | Found Prototype Processor 22137 | -4/Warlord | Found Prototype Device 22147 | -4/Warlord | Identified Exp. Core Analyzer 22149 | -4/Warlord | Identified Exp. Phase Shifter 22155 | -4/Warlord | Identified System Purifier 22155 | -4/Warlord | Met Warlord 22167 | -4/Warlord | Warlord's base attacked by MAIN.C 22172 | -4/Warlord | Found Prototype Energy Cannon 22174 | -4/Warlord | Found Prototype Energy Cannon 22185 | -4/Warlord | Identified Vortex Cannon (x2) 22405 | -4/Warlord | Spotted B-90 Cyclops 22416 | -4/Warlord | Destroyed B-90 Cyclops 22430 | -4/Warlord | Lost 5 allies 22496 | -4/Warlord | Spotted B-86 Titan 22517 | -4/Warlord | Warlord forces counterattacked 22563 | -4/Warlord | Lost 4 allies 22578 | -4/Warlord | Spotted B-90 Cyclops 22583 | -4/Warlord | Spotted Striker 22611 | -4/Warlord | Spotted Striker 22638 | -4/Warlord | Discovered new exit (range 12) 22642 | -4/Warlord | Identified exit to Proximity Caves 22642 | -4/Warlord | Entered Proximity Caves 22649 | -3/Proximity Caves | Lost 9 allies 23041 | -3/Proximity Caves | Spotted B-86 Titan 23582 | -3/Proximity Caves | Discovered exit to Research (range 9) 23636 | -3/Proximity Caves | Entered Research 23636 | -3/Research | Evolved 2 slots: Utility x1, Weapon x1 23636 | -3/Research | Discovered new exit (range 11) 23638 | -3/Research | Loaded intel: 106 trap records 23660 | -3/Research | Identified exit to Quarantine 24012 | -3/Research | Build established: Assassin 24198 | -3/Research | Entered Quarantine 24267 | -3/Quarantine | Found Prototype Launcher 24271 | -3/Quarantine | Identified Adv. Micro-nuke Launcher 24362 | -3/Quarantine | Found Alien Artifact 24363 | -3/Quarantine | Identified Phase Redirector 24373 | -3/Quarantine | Discovered new exit (range 22) 24421 | -3/Quarantine | Identified exit to Research 24467 | -3/Quarantine | Spotted Alpha 7 24512 | -3/Quarantine | Build established: Construct 24548 | -3/Quarantine | Cryocooling Duct disabled 24563 | -3/Quarantine | Ambient heat levels rising (+20) 24563 | -3/Quarantine | Non-combat units ordered to evacuate 24879 | -3/Quarantine | Build established: Hacker-Construct 25112 | -3/Quarantine | Found Alien Artifact 25565 | -3/Quarantine | Identified exit to Garrison 25565 | -3/Quarantine | Entered Garrison 25601 | -3/Garrison | Phase Generator disabled 25645 | -3/Garrison | Garrison Relay disabled 25756 | -3/Garrison | Discovered exit to Research (range 57) 25756 | -3/Garrison | Discovered exit to Research (range 34) 25756 | -3/Garrison | Discovered exit to Research (range 60) 25773 | -3/Garrison | Spotted B-86 Titan 25841 | -3/Garrison | Destroyed B-86 Titan 25907 | -3/Garrison | Found embedded Infiltrators 25965 | -3/Garrison | Triggered checkpoint 25979 | -3/Garrison | Triggered checkpoint 26016 | -3/Garrison | Garrison Relay disabled 26058 | -3/Garrison | Triggered checkpoint 26125 | -3/Garrison | Triggered checkpoint 26151 | -3/Garrison | Garrison Relay disabled 26345 | -3/Garrison | Triggered checkpoint 26386 | -3/Garrison | Garrison Relay disabled 26774 | -3/Garrison | Entered Research 26774 | -2/Research | Warlord forces began assault on 0b10 26774 | -2/Research | Evolved 2 slots: Utility x2 26799 | -2/Research | Distinguished unit "Knights of the Pentagonal Table" dispatched to help 26799 | -2/Research | Distinguished unit "Magnificent Bastards" dispatched to help 26809 | -2/Research | Identified exit to Testing 26848 | -2/Research | Spotted B-90 Cyclops 26884 | -2/Research | Research machine network offline 26910 | -2/Research | Destroyed B-90 Cyclops 27119 | -2/Research | Found Prototype Hackware 27120 | -2/Research | Identified Exp. System Shield 27193 | -2/Research | Spotted Executioner 27194 | -2/Research | Met up with Warlord 27194 | -2/Research | Spotted Executioner 27231 | -2/Research | Found Prototype Device 27234 | -2/Research | Identified Adv. Kinecellerator 27238 | -2/Research | Lost 4 allies 27306 | -2/Research | Met DD-05H 27333 | -2/Research | Discovered new exit (range 19) 27391 | -2/Research | Identified exit to Access 27441 | -2/Research | Found Exp. System Shield 27513 | -2/Research | Found Prototype Device 27518 | -2/Research | Identified Exp. EM Disruption Field 27638 | -2/Research | Spotted Striker 27668 | -2/Research | Found Exp. Core Analyzer 27693 | -2/Research | Build established: Skirmisher 27789 | -2/Research | Warlord invited to help at Command 27789 | -2/Research | Given Cave Seal Controls access code 27815 | -2/Research | Borebot progress halted 27831 | -2/Research | Discovered exit to Access (range 13) 27910 | -2/Research | Entered Testing 27935 | -2/Testing | Protovariant out of control (PG-Q7HRUQ9FD0) 27935 | -2/Testing | Unleashed a protovariant (PG-Q7HRUQ9FD0) 27939 | -2/Testing | Found Prototype Launcher 27946 | -2/Testing | Identified Tactical Quantum Warhead 28062 | -2/Testing | Spotted PG-Q7HRUQ9FD0 28064 | -2/Testing | Found Prototype Launcher 28067 | -2/Testing | Lost 7 allies 28075 | -2/Testing | Identified Containment Facilitator 28169 | -2/Testing | Found Prototype Processor 28179 | -2/Testing | Identified Exp. Terrain Scan Processor 28306 | -2/Testing | Destroyed 7 combat bots 28354 | -2/Testing | Found Prototype Device 28354 | -2/Testing | Identified AEGIS Remote Shield 28474 | -2/Testing | Found Prototype Protection 28474 | -2/Testing | Identified Med. Regenerative Plating 28477 | -2/Testing | Found Med. Regenerative Plating 28576 | -2/Testing | Rewired PY-8AW48AJBZU 28660 | -2/Testing | First assault squad dispatched 28700 | -2/Testing | Found Prototype Ballistic Cannon 28746 | -2/Testing | Identified Perforator 28759 | -2/Testing | Found Prototype Launcher 28764 | -2/Testing | Identified Enh. Gamma Bomb Array 28834 | -2/Testing | Spotted Fortress 28882 | -2/Testing | Discovered new exit (range 6) 28882 | -2/Testing | Discovered new exit (range 7) 28885 | -2/Testing | Identified exit to Protoforge 28889 | -2/Testing | Entered Protoforge 29389 | -2/Protoforge | First assault squad dispatched 29408 | -2/Protoforge | Found Prototype Device 29410 | -2/Protoforge | Identified Crosscalibrator 29418 | -2/Protoforge | Spotted Immortal 29418 | -2/Protoforge | Spotted Immortal 29425 | -2/Protoforge | Spotted Decapitator 29425 | -2/Protoforge | Spotted Decapitator 29425 | -2/Protoforge | Spotted Decapitator 29425 | -2/Protoforge | Spotted Decapitator 29438 | -2/Protoforge | Destroyed Immortal 29457 | -2/Protoforge | Destroyed Immortal 29477 | -2/Protoforge | Spotted Decapitator 29477 | -2/Protoforge | Spotted Decapitator 29477 | -2/Protoforge | Spotted Decapitator 29477 | -2/Protoforge | Spotted Decapitator 29566 | -2/Protoforge | Destroyed 9 combat bots 29593 | -2/Protoforge | Found Prototype Device 29597 | -2/Protoforge | Found Prototype Processor 29600 | -2/Protoforge | Identified Exp. Remote Shield 29601 | -2/Protoforge | Found Prototype Device 29602 | -2/Protoforge | Identified Cep. Reaction Jets 29605 | -2/Protoforge | Found Prototype Processor 29612 | -2/Protoforge | Found Prototype Processor 29635 | -2/Protoforge | Identified Cep. Projectile Intercept Suite (x3) 29639 | -2/Protoforge | Found Faulty Cep. Phase Shift Module 29640 | -2/Protoforge | Found Cep. Phase Shift Module 29647 | -2/Protoforge | Found Prototype Device 29657 | -2/Protoforge | Identified Cep. Beam Splitter 29731 | -2/Protoforge | Superfortress began startup sequence 29750 | -2/Protoforge | Destroyed Decapitator 29756 | -2/Protoforge | Destroyed Decapitator 29758 | -2/Protoforge | Destroyed Decapitator 29758 | -2/Protoforge | Destroyed Decapitator 29759 | -2/Protoforge | Destroyed Decapitator 29764 | -2/Protoforge | Destroyed Decapitator 29776 | -2/Protoforge | Destroyed Decapitator 29787 | -2/Protoforge | Forge Plexus network access discovered 29789 | -2/Protoforge | System corruption reached 10% 29800 | -2/Protoforge | Destroyed 10 combat bots 29827 | -2/Protoforge | Destroyed Decapitator 29902 | -2/Protoforge | Build established: Tank 30114 | -2/Protoforge | Spotted V136-j 30114 | -2/Protoforge | Spotted V895-t 30122 | -2/Protoforge | Found Cep. Antigrav Storage Unit 30126 | -2/Protoforge | Found Cep. Chromion Battery 30129 | -2/Protoforge | Found Cep. Antigrav Storage Unit 30130 | -2/Protoforge | Found Cep. Chromion Battery 30139 | -2/Protoforge | Found Cep. NT7 Matterbank 30143 | -2/Protoforge | Found Cep. Chromion Battery 30163 | -2/Protoforge | Spotted V400-a 30163 | -2/Protoforge | Spotted V943-q 30218 | -2/Protoforge | Found Cep. Zero-point Core 30221 | -2/Protoforge | Found Cep. Zero-point Core 30298 | -2/Protoforge | Spotted V110-o 30298 | -2/Protoforge | Spotted V290-x 30367 | -2/Protoforge | Found Faulty Cep. Plasma Driver 30368 | -2/Protoforge | Found Faulty Cep. Plasma Driver 30391 | -2/Protoforge | Build established: Sprinter 30460 | -2/Protoforge | Spotted Decapitator 30467 | -2/Protoforge | Destroyed Decapitator 30471 | -2/Protoforge | Spotted Decapitator 30471 | -2/Protoforge | Spotted Decapitator 30471 | -2/Protoforge | Spotted Decapitator 30477 | -2/Protoforge | Destroyed Decapitator 30486 | -2/Protoforge | Destroyed Decapitator 30489 | -2/Protoforge | Destroyed Decapitator 30510 | -2/Protoforge | Destroyed 8 combat bots 30512 | -2/Protoforge | Found Cep. Tactical Fusion Warhead 30568 | -2/Protoforge | Spotted AP7-3 30568 | -2/Protoforge | Spotted AP7-3 30596 | -2/Protoforge | Destroyed AP7-3 30612 | -2/Protoforge | Destroyed AP7-3 30639 | -2/Protoforge | Found Prototype Device 30640 | -2/Protoforge | Identified Exp. ECM Suite 30652 | -2/Protoforge | Identified Subatomic Replicator 30652 | -2/Protoforge | Used Subatomic Replicator to replicate Faulty Cep. Thermoelectric Network 30655 | -2/Protoforge | Found Faulty Cep. Thermoelectric Network 30680 | -2/Protoforge | Found Faulty Cep. Cloak Mesh 30712 | -2/Protoforge | Found Faulty Cep. Cloak Mesh 30734 | -2/Protoforge | Found Faulty Cep. Core Analysis Suite 30736 | -2/Protoforge | Found Cep. Core Analysis Suite 31246 | -2/Protoforge | Spotted V881-e 31246 | -2/Protoforge | Spotted V786-o 31317 | -2/Protoforge | Destroyed V110-o 31329 | -2/Protoforge | Found Faulty Exp. Force Field 31332 | -2/Protoforge | Found Faulty Exp. Force Field 31451 | -2/Protoforge | Destroyed V943-q 31477 | -2/Protoforge | Destroyed V400-a 31480 | -2/Protoforge | Found Prototype Ballistic Gun 31480 | -2/Protoforge | Identified Multirail 31484 | -2/Protoforge | Found Exp. Kinecellerator 31490 | -2/Protoforge | Found Multirail 31493 | -2/Protoforge | Found Adv. Powered Armor 31547 | -2/Protoforge | Spotted Decapitator 31552 | -2/Protoforge | Destroyed Decapitator 31565 | -2/Protoforge | Spotted Hotshot 31571 | -2/Protoforge | Spotted Immortal 31655 | -2/Protoforge | Incoming assault squad redirected 31663 | -2/Protoforge | Incoming assault squad redirected 31665 | -2/Protoforge | Destroyed Immortal 31679 | -2/Protoforge | Spotted Decapitator 31684 | -2/Protoforge | Destroyed Decapitator 31684 | -2/Protoforge | Spotted Hotshot 31693 | -2/Protoforge | Destroyed Hotshot 31708 | -2/Protoforge | Spotted Immortal 31747 | -2/Protoforge | Destroyed 12 combat bots 31761 | -2/Protoforge | Destroyed Immortal 31794 | -2/Protoforge | Spotted Decapitator 31794 | -2/Protoforge | Spotted Decapitator 31794 | -2/Protoforge | Spotted Decapitator 31816 | -2/Protoforge | Build established: Scavenger-Sprinter 31818 | -2/Protoforge | Found Prototype Device 31818 | -2/Protoforge | Identified Exp. Weapon Cycler 31843 | -2/Protoforge | Additional patrols dispatched to research labs 31893 | -2/Protoforge | Spotted Hotshot 31900 | -2/Protoforge | Destroyed Hotshot 31905 | -2/Protoforge | Incoming assault squad redirected 31911 | -2/Protoforge | Incoming assault squad redirected 31919 | -2/Protoforge | Incoming assault squad redirected 31926 | -2/Protoforge | Spotted Hotshot 31930 | -2/Protoforge | Spotted Immortal 31931 | -2/Protoforge | Destroyed Hotshot 31932 | -2/Protoforge | Spotted Striker 31941 | -2/Protoforge | Destroyed Striker 31944 | -2/Protoforge | Destroyed Decapitator 31948 | -2/Protoforge | High security lockdown imminent 31948 | -2/Protoforge | Destroyed Superfortress 31953 | -2/Protoforge | Destroyed Executioner 31956 | -2/Protoforge | Lost 3 parts (2u1w) 31979 | -2/Protoforge | Destroyed 7 combat bots 31994 | -2/Protoforge | Found Cep. Rapid Grenade Launcher 32028 | -2/Protoforge | High security lockdown engaged 32032 | -2/Protoforge | Found Cep. Navigation Harness 32039 | -2/Protoforge | Found Transdimensional Reconstructor 32168 | -2/Protoforge | Destroyed 21 combat bots 32177 | -2/Protoforge | Spotted Striker 32182 | -2/Protoforge | Destroyed Investigator 32186 | -2/Protoforge | Spotted Executioner 32188 | -2/Protoforge | Destroyed Striker 32212 | -2/Protoforge | Destroyed Executioner 32218 | -2/Protoforge | Discovered exit to Access (range 16) 32224 | -2/Protoforge | Entered Access 32224 | -1/Access | Evolved 2 slots: Utility x2 32233 | -1/Access | Destroyed 16 combat bots 32319 | -1/Access | Garrison activated, responded to threat 32343 | -1/Access | High security lockdown imminent 32423 | -1/Access | High security lockdown engaged 32427 | -1/Access | Spotted Executioner 32509 | -1/Access | Spotted Striker 32516 | -1/Access | Build established: Skirmisher 32812 | -1/Access | Discovered new exit (range 7) 32838 | -1/Access | Garrison activated, responded to threat 32881 | -1/Access | Entered Command 32963 | -1/Command | High security lockdown imminent 33043 | -1/Command | High security lockdown engaged 33257 | -1/Command | Spotted Executioner 33257 | -1/Command | Spotted Striker 33260 | -1/Command | Destroyed Striker 33263 | -1/Command | Destroyed Executioner 33266 | -1/Command | Destroyed Executioner 33267 | -1/Command | Spotted Executioner 33269 | -1/Command | Destroyed Executioner 33277 | -1/Command | Spotted Investigator 33277 | -1/Command | Scanned by Researcher 33278 | -1/Command | Destroyed Investigator 33331 | -1/Command | Destroyed 34 combat bots 33374 | -1/Command | Build established: Gunner 33402 | -1/Command | Spotted Striker 33402 | -1/Command | Spotted Executioner 33403 | -1/Command | Spotted Executioner 33405 | -1/Command | Destroyed Executioner 33411 | -1/Command | Spotted Executioner 33414 | -1/Command | Spotted Executioner 33414 | -1/Command | Spotted Executioner 33423 | -1/Command | Destroyed Striker 33435 | -1/Command | Spotted Striker 33438 | -1/Command | Spotted Striker 33444 | -1/Command | Destroyed Striker 33446 | -1/Command | Destroyed Executioner 33450 | -1/Command | Destroyed Striker 33454 | -1/Command | Destroyed Executioner 33459 | -1/Command | Destroyed Executioner 33479 | -1/Command | Destroyed Executioner 33524 | -1/Command | Destroyed 23 combat bots 33546 | -1/Command | Found Exp. Targeting Computer 33555 | -1/Command | Spotted Striker 33557 | -1/Command | Spotted Striker 33583 | -1/Command | Destroyed Striker 33615 | -1/Command | Spotted Striker 33615 | -1/Command | Spotted Executioner 33619 | -1/Command | Destroyed Executioner 33623 | -1/Command | Destroyed Striker 33651 | -1/Command | Destroyed 17 combat bots 33674 | -1/Command | Spotted Executioner 33674 | -1/Command | Spotted Striker 33674 | -1/Command | Spotted Striker 33674 | -1/Command | Spotted Executioner 33680 | -1/Command | Destroyed Striker 33684 | -1/Command | Destroyed Striker 33684 | -1/Command | Destroyed Executioner 33685 | -1/Command | Destroyed Executioner 33706 | -1/Command | Destroyed 16 combat bots 33846 | -1/Command | Build established: Scavenger-Gunner 33915 | -1/Command | Spotted Executioner 33916 | -1/Command | Spotted Executioner 33926 | -1/Command | Spotted Investigator 33928 | -1/Command | Destroyed Investigator 33934 | -1/Command | System corruption reached 10% 33935 | -1/Command | Destroyed Executioner 33935 | -1/Command | Destroyed Executioner 33935 | -1/Command | Spotted Striker 33937 | -1/Command | Spotted Executioner 33937 | -1/Command | Spotted Striker 33937 | -1/Command | Spotted Striker 33940 | -1/Command | Spotted Striker 33941 | -1/Command | Destroyed Striker 33944 | -1/Command | Destroyed Executioner 33944 | -1/Command | Destroyed Striker 33944 | -1/Command | Destroyed Striker 33955 | -1/Command | Destroyed Striker 33979 | -1/Command | Destroyed 40 combat bots 34261 | -1/Command | Spotted Executioner 34261 | -1/Command | Spotted Executioner 34265 | -1/Command | Destroyed Executioner 34278 | -1/Command | Destroyed Executioner 34455 | -1/Command | Spotted Investigator 34460 | -1/Command | Destroyed Investigator 34488 | -1/Command | Destroyed 14 combat bots 34542 | -1/Command | Found Adv. Kinecellerator 34652 | -1/Command | Spotted Executioner 35031 | -1/Command | Spotted Executioner 35068 | -1/Command | Destroyed Executioner 35074 | -1/Command | Destroyed Executioner 35193 | -1/Command | Spotted M Guard 35263 | -1/Command | Spotted Combat Programmer 35500 | -1/Command | Spotted Combat Programmer 35501 | -1/Command | Spotted M Guard 35523 | -1/Command | Destroyed Combat Programmer 35529 | -1/Command | Destroyed Combat Programmer 35570 | -1/Command | Destroyed M Guard 35584 | -1/Command | Destroyed M Guard 35584 | -1/Command | All MAIN.C guards destroyed 35733 | -1/Command | Found Corrupted Prototype Energy Cannon 35975 | -1/Command | Met MAIN.C 35981 | -1/Command | 0b10 Conduit disabled 36007 | -1/Command | Destroyed MAIN.C Shell 36010 | -1/Command | MAIN.C activated Command garrisons 36064 | -1/Command | Destroyed MAIN.C 36074 | -1/Command | Identified Cld. Nova Cannon 36074 | -1/Command | Discovered new exit (range 33) 36074 | -1/Command | Discovered new exit (range 83) 36074 | -1/Command | Extracted map data and part IDs from MAIN.C's data core 36090 | -1/Command | Lost 8 parts (1p6u1w) 36103 | -1/Command | Found Exp. System Purifier 36106 | -1/Command | Found Exp. Armor Integrity Analyzer 36107 | -1/Command | Found Exp. Targeting Computer 36899 | -1/Command | Found Corrupted AEGIS Remote Shield 37048 | -1/Command | Released all parts (19) 37365 | -1/Command | Build established: Mutant 37390 | -1/Command | Found Adv. Kinecellerator 37445 | -1/Command | Found Exp. ECM Suite 37512 | -1/Command | Found Exp. Core Analyzer 37607 | -1/Command | Found Adv. Kinecellerator 37636 | -1/Command | Found Corrupted AEGIS Remote Shield 37640 | -1/Command | Found Corrupted Hvy. Regenerative Plating 37658 | -1/Command | Found Corrupted Exp. Targeting Computer 37939 | -1/Command | Build established: Scavenger-Gunner 37962 | -1/Command | Found Hyp. Multirail 37965 | -1/Command | Found Vortex Chain Reactor 37967 | -1/Command | Found Zero-point Reactor 38906 | -1/Command | Found Exp. Core Analyzer 39504 | -1/Command | Warped through subspace to slip node 39504 | -1/Command | Discovered new exit (range 5) 39513 | -1/Command | Entered Access_0 39514 | -1/Access_0 | Met Architect 39528 | -1/Access_0 | Destroyed A8 39541 | -1/Access_0 | Architect warped through subspace 39601 | -1/Access_0 | Architect warped through subspace 39607 | -1/Access_0 | Subspace Access Node disabled 39671 | -1/Access_0 | Subspace Access Node disabled 39676 | -1/Access_0 | Architect warped through subspace 39723 | -1/Access_0 | Architect warped through subspace 39767 | -1/Access_0 | Architect warped through subspace 39797 | -1/Access_0 | A6 warped into view 39807 | -1/Access_0 | Destroyed A6 39812 | -1/Access_0 | Architect warped through subspace 39813 | -1/Access_0 | Found Exp. Weapon Cycler 39843 | -1/Access_0 | Architect warped through subspace 39852 | -1/Access_0 | Subspace Access Node disabled 39870 | -1/Access_0 | Architect warped through subspace 39913 | -1/Access_0 | Architect warped through subspace 39936 | -1/Access_0 | Architect warped through subspace 39955 | -1/Access_0 | Found Exp. Targeting Computer 39990 | -1/Access_0 | Architect warped through subspace 40014 | -1/Access_0 | Architect warped through subspace 40033 | -1/Access_0 | Architect warped through subspace 40074 | -1/Access_0 | Core integrity fell below 50% 40099 | -1/Access_0 | Destroyed A2 40116 | -1/Access_0 | Found Hvy. Regenerative Plating 40123 | -1/Access_0 | Extracted Singularity Gate Test 138-C access codes from A2's data core 40169 | -1/Access_0 | Core integrity fell below 20% 40194 | -1/Access_0 | Lost 21 parts (5p6n3u7w) 40259 | -1/Access_0 | Subspace Access Node disabled 40298 | -1/Access_0 | Destroyed by Architect with Modified Sigix Sheargun Last Messages --------------- 40274_ AEGIS Remote Shield temporarily disabled. 40274_ Exp. Weapon Cycler temporarily disabled. 40274_ Exp. Armor Integrity Analyzer temporarily disabled. 40275_ The unstable cave ceiling collapses. 40275_ System corrupted: Hyp. Linear Accelerator jammed. 40276_ System corrupted: Component data lost. 40276_ Penetrated by Quantum Shear. 40278_ The unstable cave ceiling collapses. 40280_ HV Slug penetrates Architect. 40280_ Architect suffers critical hit (Destroy). 40281_ Penetrated by Quantum Shear. 40282_ The unstable cave ceiling collapses. 40286_ Penetrated by Quantum Shear. 40288_ The unstable cave ceiling collapses. 40288_ Penetrated by Quantum Shear. 40289_ System corrupted: Neutron Cannon failed to cycle. 40290_ Penetrated by Quantum Shear. 40293_ Imp. Quantum Reactor destroyed. 40293_ Penetrated by Quantum Shear. 40294_ The unstable cave ceiling collapses. Map ----- +----------------------------------------------------+ | ?????????????????????????????????????????????????? | | ?????????????????????????????????????????????????? | | ?????????????????????????????????????????????????? | | ?????????????????????????????????????????????????? | | ??????????????#????????????#?????????????????????? | | ?????????????????????????????????????????????????? | | ???????????????????????????????? #???????????????? | | ???????????????????????????????? #? #????????????? | | ????"????????????#? ????????##? #? #? ?????????? | | ????#???????????## ????????? ## # ## ????????? | | ????????? ??????# ???????## # # # ?????????? | | ????????????????# ???###? #?????????? | | ????????????????# ??# #? #? ???????? | | ??????????#?????? ?## #? # ##????????? | | ????????????#????# ## #? # # #????????? | | ????????????????## #;;## # # # ##???????? | | ????????????????# ;; ## # #???#???? | | ????????????????# #;; ## #???????? | | ????????????????# ## #???????? | | ????????????????# # ##??????? | | ?#???????????##?# ] #??????? | | #???#??????###""## ##??????? | | ???????????# ###"# ## # #??????? | | ???????????# ## #; ! # #???????? | | ?????????????# # ;;!!! # #??????????? | | #??#????????## ; ;; @ # #????????#????????? | | "##?##??#####; #;;;; # #?????????? | | """##"### "## ;; ] ##??????????????????? | | " "; ;; ####???????????????????? | | % "%" ;;;;?????#????????????????? | | = ;; ??????????????????????? | | ! !! ;; ??????????????????????? | | !!"" % ;; ##?????????????????????? | | "" %%% ;;; #???#?????#???#????????? | | #"""" """%""" ! ;;#??????????????????????? | | ## """ #"###;;!!0 ;#???????????#?????#????? | | ?#### ########### != ! ##??????????????????????? | | ?#??##???## ;;;**!%!;"##?????????????????????? | | ?#????#### #" !%! #?????????????????????? | | ???????# #" " ! # ####??????????????????? | | ????#?## " ! !" # #####???#???????????? | | ???????## !" ###?????????????? | | ??#?????# " " " #?????????????? | | ???????#" " " #?????????????? | | #??#?# " #????????????? | | ?????##### " " # ## #??? ???????? | | #???????##" ! """"#" ##? #???????????? | | ?#??#???# "" ! #??? #???????????? | | ????????## "%"" ## ##???? #???????????? | | ????#???# " """" #?####??????###???????????? | +----------------------------------------------------+ Best States ------------- Heat Dissipation 142 Energy Generation 95 Energy Capacity 1967 Matter Stores 300 Matter Capacity 300 Sight Range 23 Robot Scan Range 20 Terrain Scan Range 24 Terrain Scan Density 1010 ECM Strength 2 Jamming Range 14 Cloak Strength 9 Power Amplification 40 Additional Mass Support 12 Armor Coverage 800 Resistance: KI 25 Core Shielding 40 Utility Shielding 90 Point Defense Rating 240 Weapon Cycling 30 Phase Shifting 25 Evasion (%) 106 Targeting Accuracy 24 Core Analysis 12 Armor Integrity Analysis 50 Recoil Reduction 5 Particle Charging 25 Kinecelleration 66 Offensive Hacking 14 Defensive Hacking 16 Item Schematics ----------------- Huge Storage Unit | -10/Materials | Hacked Exp. Sensor Array | -8/Materials | Scanalyzed Combat Drone Bay | -6/Data Miner | Free Lgt. Regenerative Plating | -6/Data Miner | Free Cld. Nuclear Pulse Thruster | -6/Data Miner | Free Exp. Heat Sink | -6/Data Miner | Free Enh. Force Rifle | -6/Data Miner | Free Adv. Medium Treads | -6/Data Miner | Free Adv. Thermal Shield | -6/Data Miner | Free HERF Cannon | -6/Data Miner | Free Adv. Force Field | -5/Factory | Scanalyzed Hcp. Storage Unit | -5/Factory | Scanalyzed Cld. Gravmag System | -5/Factory | Scanalyzed Adv. Reaction Control System | -5/Factory | Scanalyzed Adv. Hacking Suite | -5/Factory | Scanalyzed Assault Drone Bay | -5/Zhirov | Free Exp. Optical Array | -5/Zhirov | Free Imp. Arc Thrower | -5/Zhirov | Free Enh. Biometal Leg | -2/Testing | Archive Prc. Matter Filter | -2/Testing | Archive Tactical Quantum Warhead | -2/Testing | Archive Adv. Variable Charge Gun | -2/Testing | Archive Hds. Centrium Wheel | -2/Testing | Archive Prc. Phase Gun | -2/Testing | Archive Exp. Transmission Jammer | -2/Testing | Hacked Exp. EM Disruption Field | -2/Protoforge | Archive Exp. Q-thruster | -2/Protoforge | Archive Graviton Cannon | -2/Protoforge | Archive Exp. Myomer Leg | -2/Protoforge | Archive Adv. Energy Well | -2/Protoforge | Archive Robot Schematics ------------------ L-41 Fighter | -6/Data Miner | Free B-48 Gladiator | -6/Data Miner | Free A-15 Conveyor | -6/Data Miner | Free G-50 Soldier | -6/Data Miner | Free B-60 Warrior | -6/Data Miner | Free M-30 Cleanser | -6/Data Miner | Free A-02 Transporter | -2/Testing | Archive E-15 Imp | -2/Protoforge | Archive R-06 Scavenger | -2/Protoforge | Archive Fabricated ------------ Nothing Repaired ---------- Exp. Sensor Array | 62% | -8/Materials | Broken Studied --------- Wheel | -8/Materials | Hacked Com. HERF Cannon | -4/Factory | Hacked Alien Tech Used ----------------- Core Expander Integrated Reactor Phase Redirector Subatomic Replicator Transdimensional Reconstructor Achievements -------------- None Challenges ------------ None Game ------ Seed ChromaticAuthchipAccelerator Manual? 0 Play Time 09:57:42 Cumulative 1150.0 hours Start 2026.03.08 @ 21:50:14 End 2026.03.09 @ 18:31:23 Sessions 9 Manual Loads 0 Difficulty Rogue Special Mode None Game No. 207 Rogue 207 Adventurer 0 Explorer 0 Win Type - Total 69 Types 26/8/11/1/3/1/10/4/3/2 Lore% 95 Gallery% 91 Achievement% 86 Wizard Run 0 Options --------- Layout 0 ASCII 0 Keyboard 0 Movement Numpad Keybinds 0 Fullscreen 1 Font 18/SmallcapsGlow Map View 76x50 Zoom Use 0% Tactical HUD 1 Map Filters NONE Filters NONE Steam 1 RUN: a1493cb5-6171-4a8a-90b8-805a17121c37